Workbook

Sheet Př vč financ
A1: 00248266 Město Humpolec
A2: Horní náměstí 300 Humpolec
A3: Plnění rozpisu rozpočtu příjmů a financování k 31.08.2023 v tisících Kč
A5: POL(1) | B5: POL(2) | C5: POL(4) | D5: Popis | E5: ODPA(4) | F5: Popis | G5: ORG | H5: 2023
H6: Schválený rozp. | I6: Upravený rozp. | J6: Skutečnost k 31.8. | K6: Plnění v Kč k UR | L6: Plnění v % k UR | M6: Skutečnost k 31.8.2022 | N6: SK23/SK22 v % | O6: predikce Cityfinance z 8.9.2023
A7: 1 | B7: 11 | C7: 1111 | D7: Příjem z daně z příjmů fyzických osob placené plátci | H7: 36100 | I7: 36100 | J7: 24979.78765 | K7: 11120.21235 | L7: 69.19608767 | M7: 20645.07074 | N7: =J7/M7*100 -> 120.9963771 | O7: 39350
A8: 1 | B8: 11 | C8: 1112 | D8: Příjem z daně z příjmů fyzických osob placené poplatníky | H8: 2200 | I8: 2200 | J8: 1446.87735 | K8: 753.12265 | L8: 65.76715227 | M8: 1459.92992 | N8: =J8/M8*100 -> 99.10594544 | O8: 2880
A9: 1 | B9: 11 | C9: 1113 | D9: Příjem z daně z příjmů fyzických osob vybírané srážkou podle zvláštní sazby daně | H9: 7100 | I9: 7100 | J9: 5504.32086 | K9: 1595.67914 | L9: 77.52564592 | M9: 3927.05019 | N9: 140.1642605 | O9: 8420
A10: 1 | B10: 11 | C10: 1121 | D10: Příjem z daně z příjmů právnických osob | H10: 48750 | I10: 48750 | J10: 41210.37415 | K10: 7539.62585 | L10: 84.53410082 | M10: 30036.40435 | N10: 137.2014229 | O10: 62630
A11: 1 | B11: 11 | C11: 1122 | D11: Příjem z daně z příjmů právnických osob v případech, kdy poplatníkem je obec | H11: 15000 | I11: 17339.4 | J11: 17339.4 | K11: 0 | L11: 100 | M11: 14157.66 | N11: 122.4736291
A12: POL(2) 11 Daně z příjmů, zisku a kapitálových výnosů | H12: 109150 | I12: 111489.4 | J12: 90480.76 | K12: 21008.64 | L12: 81.16 | M12: 70226.11 | N12: 128.8420503
A13: 1 | B13: 12 | C13: 1211 | D13: Příjem z daně z přidané hodnoty | H13: 117000 | I13: 117000 | J13: 75002.38533 | K13: 41997.61467 | L13: 64.10460285 | M13: 70459.78114 | N13: 106.4470881 | O13: 117050
A14: POL(2) 12 Daně, poplatky a jiná obdobná peněžitá plnění ze zboží a služeb v tuzemsku | H14: 117000 | I14: 117000 | J14: 75002.39 | K14: 41997.61 | L14: 64.1 | M14: 70459.78 | N14: 106.4470965
A15: 1 | B15: 13 | C15: 1334 | D15: Příjem z odvodů za odnětí půdy ze zemědělského půdního fondu podle zákona na ochranu ZPF | M15: 44.8566
A16: 1 | B16: 13 | C16: 1335 | D16: Příjem z poplatku za odnětí pozemku podle lesního zákona | H16: 5 | I16: 5 | J16: 11.02173 | K16: -6.02173 | L16: 220.4346 | M16: 2.4504 | N16: 449.793095
A17: 1 | B17: 13 | C17: 1341 | D17: Příjem z poplatku ze psů | H17: 250 | I17: 250 | J17: 274.534 | K17: -24.534 | L17: 109.8136 | M17: 283.367 | N17: 96.88284098
A18: 1 | B18: 13 | C18: 1343 | D18: Příjem z poplatku za užívání veřejného prostranství | H18: 150 | I18: 150 | J18: 46.66 | K18: 103.34 | L18: 31.10666667 | M18: 81.178 | N18: 57.47862721
A19: 1 | B19: 13 | C19: 1345 | D19: Příjem z poplatku za odpadové hospodářství a odkládání komunálního odpadu z nemovité věci | H19: 7500 | I19: 7500 | J19: 7759.98924 | K19: -259.98924 | L19: 103.4665232 | M19: 7740.86892 | N19: 100.2470048
A20: 1 | B20: 13 | C20: 1353 | D20: Příjem za zkoušky z odborné způsobilosti od žadatelů o řidičské oprávnění | H20: 250 | I20: 250 | J20: 212 | K20: 38 | L20: 84.8 | M20: 209.8 | N20: 101.0486177
A21: 1 | B21: 13 | C21: 1359 | D21: Příjem z odvodů z vybraných činností a služeb jinde neuvedené | H21: 0 | I21: 0 | J21: 3 | K21: -3 | L21: 0 | M21: 33 | N21: 9.090909091
A22: 1 | B22: 13 | C22: 1361 | D22: Příjem ze správních poplatků | H22: 4700 | I22: 4700 | J22: 4118.677 | K22: 581.323 | L22: 87.63142553 | M22: 3699.98 | N22: 111.3161963
A23: 1 | B23: 13 | C23: 1381 | D23: Příjem z daně z hazardních her s výjimkou dílčí daně z technických her | H23: 1500 | I23: 1500 | J23: 1240.05206 | K23: 259.94794 | L23: 82.67013733 | M23: 1151.3742 | N23: 107.7019148
A24: 1 | B24: 13 | C24: 1385 | D24: Příjem z dílčí daně z technických her | H24: 19000 | I24: 19000 | J24: 17173.35484 | K24: 1826.64516 | L24: 90.38607811 | M24: 13835.41382 | N24: 124.1260656
A25: POL(2) 13 Daně a poplatky z vybraných činností a služeb | H25: 33355 | I25: 33355 | J25: 30839.28 | K25: 2515.72 | L25: 92.46 | M25: 27082.29 | N25: 113.8724975
A26: 1 | B26: 15 | C26: 1511 | D26: Příjem z daně z nemovitých věcí | H26: 9900 | I26: 9900 | J26: 6847.3082 | K26: 3052.6918 | L26: 69.16472929 | M26: 6808.28708 | N26: 100.5731415
A27: POL(2) 15 Příjem z majetkových daní | H27: 9900 | I27: 9900 | J27: 6847.31 | K27: 3052.69 | L27: 69.16 | M27: 6808.29 | N27: 100.5731248
A28: POL(1) 1 Daňové příjmy | H28: 269405 | I28: 271744.4 | J28: 203169.74 | K28: 68574.66 | L28: 74.77 | M28: 174576.47 | N28: 116.3786506
A29: z toho sdílené daně (POL 1111+1112+1113+1121+1211) | H29: =H7+H8+H9+H10+H13 -> 211150 | I29: =I7+I8+I9+I10+I13 -> 211150 | J29: =J7+J8+J9+J10+J13 -> 148143.7453 | K29: =K7+K8+K9+K10+K13 -> 63006.25466 | L29: =J29/I29*100 -> 70.16042877 | M29: =M7+M8+M9+M10+M13 -> 126528.2363 | N29: 117.0835456 | O29: =O7+O8+O9+O10+O13 -> 230330
A30: 2 | B30: 21 | C30: 2111 | D30: Příjem z poskytování služeb, výrobků, prací, výkonů a práv | E30: 1039 | F30: Ostatní záležitosti lesního hospodářství | H30: 2 | I30: 2 | J30: 1 | K30: 1 | L30: 50
A31: 2 | B31: 21 | C31: 2111 | D31: Příjem z poskytování služeb, výrobků, prací, výkonů a práv | E31: 2310 | F31: Pitná voda | H31: 55000 | I31: 55000 | J31: 38745.97025 | K31: 16254.02975 | L31: 70.44721864 | M31: 38034.11504 | N31: 101.8716229
A32: 2 | B32: 21 | C32: 2111 | D32: Příjem z poskytování služeb, výrobků, prací, výkonů a práv | E32: 3612 | F32: Bytové hospodářství | H32: 7900 | I32: 7900 | J32: 5971.97909 | K32: 1928.02091 | L32: 75.59467203 | M32: 4513.92897 | N32: 132.3011312
A33: 2 | B33: 21 | C33: 2111 | D33: Příjem z poskytování služeb, výrobků, prací, výkonů a práv | E33: 3613 | F33: Nebytové hospodářství | H33: 10 | I33: 10 | J33: 6.72 | K33: 3.28 | L33: 67.2 | M33: 6.72 | N33: 100
A34: 2 | B34: 21 | C34: 2111 | D34: Příjem z poskytování služeb, výrobků, prací, výkonů a práv | E34: 3725 | F34: Využívání a zneškodňování komunálních odpadů-Odměna za vytříděné složky odpadu | G34: 0372500010 | H34: 3000 | I34: 0 | J34: 0 | K34: 0 | L34: 0 | M34: 1437.41028 | N34: 0
A35: 2 | B35: 21 | C35: 2111 | D35: Příjem z poskytování služeb, výrobků, prací, výkonů a práv | E35: 3900 | F35: Ostatní činnosti související se službami pro obyvatelstvo | H35: 20 | I35: 20 | J35: 24.135 | K35: -4.135 | L35: 120.675 | M35: 59.882 | N35: 40.30426505
A36: 2 | B36: 21 | C36: 2111 | D36: Příjem z poskytování služeb, výrobků, prací, výkonů a práv | E36: 6171 | F36: Činnost místní správy | H36: 10 | I36: 10 | J36: 0.22 | K36: 9.78 | L36: 2.2 | M36: 1.189 | N36: 18.50294365
A37: 2 | B37: 21 | C37: 2112 | D37: Příjem z prodeje zboží (již nakoupeného za účelem prodeje) | E37: 6171 | F37: Činnost místní správy | H37: 2 | I37: 2 | J37: 0.915 | K37: 1.085 | L37: 45.75 | M37: 12.565 | N37: 7.282132909
A38: 2 | B38: 21 | C38: 2119 | D38: Ostatní příjmy z vlastní činnosti | E38: 6171 | F38: Činnost místní správy | H38: 120 | I38: 120 | J38: 1411.3924 | K38: -1291.3924 | L38: 1176.160333 | M38: 360.78395 | N38: 391.2015487
A39: 2 | B39: 21 | C39: 2122 | D39: Příjem z odvodů příspěvkových organizací | E39: 3111 | F39: Mateřské školy | H39: 509 | I39: 509 | J39: 247.608 | K39: 261.392 | L39: 48.6459725 | M39: 258.282 | N39: 95.86730783
A40: 2 | B40: 21 | C40: 2122 | D40: Příjem z odvodů příspěvkových organizací | E40: 3113 | F40: ZŠ Hálkova | G40: 0000000321 | H40: 1040 | I40: 1040 | J40: 522.12714 | K40: 517.87286 | L40: 50.20453269 | M40: 515.96763 | N40: 101.1937784
A41: 2 | B41: 21 | C41: 2122 | D41: Příjem z odvodů příspěvkových organizací | E41: 3113 | F41: ZŠ Hradská | G41: 0000000322 | H41: 801 | I41: 801 | J41: 388.73322 | K41: 412.26678 | L41: 48.53098876 | M41: 509.85186 | N41: 76.24434674
A42: 2 | B42: 21 | C42: 2122 | D42: Příjem z odvodů příspěvkových organizací | E42: 3231 | F42: Základní umělecké školy | H42: 82 | I42: 82 | J42: 61.92 | K42: 20.08 | L42: 75.51219512 | M42: 41.28 | N42: 150
A43: 2 | B43: 21 | C43: 2122 | D43: Příjem z odvodů příspěvkových organizací | E43: 3233 | F43: Střediska volného času | H43: 282 | I43: 282 | J43: 141.267 | K43: 140.733 | L43: 50.09468085 | M43: 137.936 | N43: 102.4148881
A44: 2 | B44: 21 | C44: 2122 | D44: Příjem z odvodů příspěvkových organizací | E44: 3319 | F44: Ostatní záležitosti kultury | H44: 714 | I44: 714 | J44: 357.138 | K44: 356.862 | L44: 50.01932773 | M44: 357.138 | N44: 100
A45: 2 | B45: 21 | C45: 2131 | D45: Příjem z pronájmu pozemků | E45: 1039 | F45: Ostatní záležitosti lesního hospodářství | H45: 7260 | I45: 7260 | J45: 0 | K45: 7260 | L45: 0 | M45: 28329.77114 | N45: 0
A46: 2 | B46: 21 | C46: 2131 | D46: Příjem z pronájmu pozemků | E46: 3639 | F46: Komunální služby a územní rozvoj jinde nezařazené | H46: 782 | I46: 782 | J46: 589.88914 | K46: 192.11086 | L46: 75.43339386 | M46: 638.93264 | N46: 92.32415173
A47: 2 | B47: 21 | C47: 2132 | D47: Příjem z pronájmu ostatních nemovitých věcí a jejich částí | E47: 2310 | F47: Pitná voda | H47: 0.121 | I47: 0.121 | J47: 0 | K47: 0.121 | L47: 0 | M47: 0.121 | N47: 0
A48: 2 | B48: 21 | C48: 2132 | D48: Příjem z pronájmu ostatních nemovitých věcí a jejich částí | E48: 3612 | F48: Bytové hospodářství | H48: 14700 | I48: 14700 | J48: 9858.31017 | K48: 4841.68983 | L48: 67.06333449 | M48: 9339.55754 | N48: 105.5543598
A49: 2 | B49: 21 | C49: 2132 | D49: Příjem z pronájmu ostatních nemovitých věcí a jejich částí | E49: 3613 | F49: Nebytové hospodářství | H49: 6400 | I49: 6400 | J49: 5063.88968 | K49: 1336.11032 | L49: 79.12327625 | M49: 5221.8663 | N49: 96.9747096
A50: 2 | B50: 21 | C50: 2132 | D50: Příjem z pronájmu ostatních nemovitých věcí a jejich částí | E50: 3639 | F50: Komunální služby a územní rozvoj jinde nezařazené | H50: 6 | I50: 6 | J50: 0 | K50: 6 | L50: 0 | N50: =J50/M50*100 -> 
A51: 2 | B51: 21 | C51: 2132 | D51: Příjem z pronájmu ostatních nemovitých věcí a jejich částí | E51: 6221 | F51: Humanitární zahraniční pomoc přímá | H51: 50 | I51: 50 | J51: 50.4 | K51: -0.4 | L51: 100.8 | M51: 51 | N51: =J51/M51*100 -> 98.82352941
A52: 2 | B52: 21 | C52: 2133 | D52: Příjem z pronájmu movitých věcí | E52: 3639 | F52: Komunální služby a územní rozvoj jinde nezařazené | H52: 175 | I52: 175 | J52: 0 | K52: 175 | L52: 0 | M52: 1.19064 | N52: 0
A53: 2 | B53: 21 | C53: 2139 | D53: Ostatní příjmy z pronájmu majetku | E53: 3632 | F53: Pohřebnictví | H53: 200 | I53: 200 | J53: 253.102 | K53: -53.102 | L53: 126.551 | M53: 204.235 | N53: 123.926849
A54: 2 | B54: 21 | C54: 2139 | D54: Ostatní příjmy z pronájmu majetku | E54: 3639 | F54: Komunální služby a územní rozvoj jinde nezařazené | H54: 100 | I54: 100 | J54: 86.576 | K54: 13.424 | L54: 86.576
A55: 2 | B55: 21 | C55: 2141 | D55: Příjem z úroků | E55: 6310 | F55: Obecné příjmy a výdaje z finančních operací | H55: 5010 | I55: 5010 | J55: 7088.61534 | K55: -2078.61534 | L55: 141.4893281 | M55: 2122.0645 | N55: 334.0433498
A56: 2 | B56: 21 | C56: 2143 | D56: Kursové rozdíly v příjmech | E56: 2299 | F56: Ostatní záležitosti v dopravě | H56: 2 | I56: 2 | J56: -0.12086 | K56: 2.12086 | L56: -6.043 | M56: -0.56504 | N56: 21.38963613
A57: POL(2) 21 Příjem z vlastní činnosti a odvody přebytků organizací s přímým vztahem | H57: 104177.12 | I57: 101177.12 | J57: 70871.81 | K57: 30305.32 | L57: 70.05 | M57: =SUM(M30:M56) -> 92155.22345 | N57: 76.90482139
A58: 2 | B58: 22 | C58: 2212 | D58: Příjem sankčních plateb přijatých od jiných subjektů | E58: 2169 | F58: Ostatní správa v průmyslu,stavebnictví, obchodu a službách | H58: 10 | I58: 10 | J58: 22 | K58: -12 | L58: 220
A59: 2 | B59: 22 | C59: 2212 | D59: Příjem sankčních plateb přijatých od jiných subjektů | E59: 2212 | F59: Silnice | H59: 126 | I59: 126 | J59: 144 | K59: -18 | L59: 114.2857143
A60: 2 | B60: 22 | C60: 2212 | D60: Příjem sankčních plateb přijatých od jiných subjektů | E60: 2299 | F60: Ostatní záležitosti v dopravě | H60: 400 | I60: 400 | J60: 602.10933 | K60: -202.10933 | L60: 150.5273325 | M60: 1449.18315 | N60: 41.54818734
A61: 2 | B61: 22 | C61: 2212 | D61: Příjem sankčních plateb přijatých od jiných subjektů | E61: 3612 | F61: Bytové hospodářství | H61: 20 | I61: 20 | J61: 58.2995 | K61: -38.2995 | L61: 291.4975
A62: 2 | B62: 22 | C62: 2212 | D62: Příjem sankčních plateb přijatých od jiných subjektů | E62: 3769 | F62: Ostatní správa v ochraně životního prostředí | H62: 50 | I62: 50 | J62: 21.9 | K62: 28.1 | L62: 43.8
A63: 2 | B63: 22 | C63: 2212 | D63: Příjem sankčních plateb přijatých od jiných subjektů | E63: 5311 | F63: Bezpečnost a veřejný pořádek | H63: 70 | I63: 70 | J63: 58.2567 | K63: 11.7433 | L63: 83.22385714
A64: 2 | B64: 22 | C64: 2229 | D64: Ostatní přijaté vratky transferů a podobné příjmy | E64: 3111 | F64: Mateřská škola | G64: 0000000301 | H64: 16.912 | I64: 16.912 | J64: 16.912 | K64: 0 | L64: 100
A65: 2 | B65: 22 | C65: 2229 | D65: Ostatní přijaté vratky transferů a podobné příjmy | E65: 3113 | F65: ZŠ Hálkova | G65: 0000000321 | H65: 348 | I65: 348 | J65: 348 | K65: 0 | L65: 100
A66: 2 | B66: 22 | C66: 2229 | D66: Ostatní přijaté vratky transferů a podobné příjmy | E66: 3113 | F66: ZŠ Hradská | G66: 0000000322 | H66: 180.99755 | I66: 180.99755 | J66: 180.99755 | K66: 0 | L66: 100
A67: 2 | B67: 22 | C67: 2229 | D67: Ostatní přijaté vratky transferů a podobné příjmy | E67: 3319 | F67: Ostatní záležitosti kultury | H67: 235 | I67: 0 | J67: 0 | K67: 0 | L67: 0
A68: 2 | B68: 22 | C68: 2229 | D68: Ostatní přijaté vratky transferů a podobné příjmy | E68: 3319 | F68: Ostatní záležitosti kultury-MěKIS | G68: 0000000376 | H68: 0 | I68: 235 | J68: 235 | K68: 0 | L68: 100
A69: 2 | B69: 22 | C69: 2229 | D69: Ostatní přijaté vratky transferů a podobné příjmy | E69: 6402 | F69: Finanční vypořádání | H69: 476.434 | I69: 476.434 | J69: 486.084 | K69: -9.65 | L69: 102.0254642 | M69: 574.41861 | N69: 84.62191014
A70: 2 | B70: 22 | C70: 2229 | D70: Ostatní přijaté vratky transferů a podobné příjmy | E70: 6402 | F70: Finanční vypořádání-SVČ-neinv.průtok.dotace Míčkování anebo zatočíme s rýmou a kašlem | G70: 0323300001 | H70: 5.843 | I70: 5.843 | J70: 5.843 | K70: 0 | L70: 100
A71: POL(2) 22 Přijaté sankční platby a vratky transferů | H71: 1939.18 | I71: 1939.18 | J71: 2179.4 | K71: -240.22 | L71: 112.39 | M71: 2722.43 | N71: 80.05348163
A72: 2 | B72: 23 | C72: 2310 | D72: Příjem z prodeje krátkodobého a drobného dlouhodobého neinvestičního majetku | E72: 6171 | F72: Činnost místní správy | H72: 1 | I72: ; | J72: 16.23 | K72: -15.23 | L72: 1623 | N72: =J72/M72*100 -> 
A73: 2 | B73: 23 | C73: 2322 | D73: Příjem z pojistných náhrad | E73: 6171 | F73: Činnost místní správy | H73: 100 | I73: 100 | J73: 520.981 | K73: -420.981 | L73: 520.981
A74: 2 | B74: 23 | C74: 2324 | D74: Přijaté neinvestiční příspěvky a náhrady | E74: 1036 | F74: Správa v lesním hospodářství-Projekt-Lesní hosp.osnovy Humpolecko | G74: 0103600004 | H74: 0 | I74: 732.05 | J74: 732.05 | K74: 0 | L74: 100
A75: 2 | B75: 23 | C75: 2324 | D75: Přijaté neinvestiční příspěvky a náhrady | E75: 1039 | F75: Ostatní záležitosti lesního hospodářství | H75: 0 | I75: 0 | J75: 23.282 | K75: -23.282 | L75: 0
A76: 2 | B76: 23 | C76: 2324 | D76: Přijaté neinvestiční příspěvky a náhrady | E76: 2169 | F76: Ostatní správa v průmyslu,stavebnictví, obchodu a službách | H76: 2 | I76: 2 | J76: 9 | K76: -7 | L76: 450
A77: 2 | B77: 23 | C77: 2324 | D77: Přijaté neinvestiční příspěvky a náhrady | E77: 2299 | F77: Ostatní záležitosti v dopravě | H77: 10 | I77: 10 | J77: 20.5038 | K77: -10.5038 | L77: 205.038
A78: 2 | B78: 23 | C78: 2324 | D78: Přijaté neinvestiční příspěvky a náhrady | E78: 3632 | F78: Pohřebnictví | H78: 50 | I78: 50 | J78: 84.885 | K78: -34.885 | L78: 169.77
A79: 2 | B79: 23 | C79: 2324 | D79: Přijaté neinvestiční příspěvky a náhrady | E79: 3725 | F79: Využívání a zneškodňování komunálních odpadů-Odměna za vytříděné složky odpadu | G79: 0372500010 | H79: 0 | I79: 3000 | J79: 1544.88815 | K79: 1455.11185 | L79: 51.49627167 | M79: 1437.41028 | N79: 107.4771881
A80: 2 | B80: 23 | C80: 2324 | D80: Přijaté neinvestiční příspěvky a náhrady | E80: 5311 | F80: Bezpečnost a veřejný pořádek | H80: 5 | I80: 5 | J80: 10.96661 | K80: -5.96661 | L80: 219.3322
A81: 2 | B81: 23 | C81: 2324 | D81: Přijaté neinvestiční příspěvky a náhrady | E81: 6171 | F81: Činnost místní správy | H81: 5 | I81: 5 | J81: 0 | K81: 5 | L81: 0
A82: 2 | B82: 23 | C82: 2329 | D82: Ostatní nedaňové příjmy jinde nezařazené | E82: 2212 | F82: Silnice | H82: 0 | I82: 0 | J82: 77.94142 | K82: -77.94142 | L82: 0
A83: 2 | B83: 23 | C83: 2329 | D83: Ostatní nedaňové příjmy jinde nezařazené | E83: 3632 | F83: Pohřebnictví | H83: 0 | I83: 0 | J83: 12.828 | K83: -12.828 | L83: 0
A84: 2 | B84: 23 | C84: 2329 | D84: Ostatní nedaňové příjmy jinde nezařazené | E84: 6171 | F84: Činnost místní správy | H84: 10 | I84: 10 | J84: 53.37096 | K84: -43.37096 | L84: 533.7096
A85: 2 | B85: 23 | C85: 2329 | D85: Ostatní nedaňové příjmy jinde nezařazené | E85: 6409 | F85: Ostatní činnosti jinde nezařazené | H85: 0 | I85: 0 | J85: 45.7669 | K85: -45.7669 | L85: 0
A86: POL(2) 23 Příjem z prodeje neinvestičního majetku, ostatní nedaňové příjmy | H86: 183 | I86: 3915.05 | J86: 3152.7 | K86: 762.35 | L86: 80.53 | M86: 298.32 | N86: 1056.818182
A87: 2 | B87: 24 | C87: 2412 | D87: Splátky půjčených prostředků od podnikatelských nefinančních subjektů - právn.osob-TS-bezúročná zápůjčka 2023 | G87: 0363900041 | H87: 15000 | I87: 15000 | J87: 0 | K87: 15000 | L87: 0
A88: 2 | B88: 24 | C88: 2460 | D88: Splátky půjčených prostředků od obyvatelstva-SF | H88: 10 | I88: 10 | J88: 0 | K88: 10 | L88: 0
A89: POL(2) 24 Přijaté splátky půjčených prostředků | H89: 15010 | I89: 15010 | J89: 0 | K89: 15010 | L89: 0
A90: POL(1) 2 Nedaňové příjmy | H90: 121309.3 | I90: 122041.35 | J90: 76203.91 | K90: 45837.45 | L90: 62.44 | M90: 95175.98 | N90: 80.06632556
A91: 3 | B91: 31 | C91: 3111 | D91: Příjem z prodeje pozemků | E91: 3639 | F91: Komunální služby a územní rozvoj jinde nezařazené | H91: 300 | I91: 300 | J91: 1311.727 | K91: -1011.727 | L91: 437.2423333
A92: 3 | B92: 31 | C92: 3121 | D92: Přijaté dary na pořízení dlouhodobého majetku | E92: 2212 | F92: Silnice | H92: 0 | I92: 0 | J92: 162.484 | K92: -162.484 | L92: 0
A93: POL(2) 31 Příjem z prodeje dlouhodobého majetku a ostatní kapitálové příjmy | H93: 300 | I93: 300 | J93: 1474.21 | K93: -1174.21 | L93: 491.4 | M93: 554.43 | N93: 265.8965063
A94: POL(1) 3 Kapitálové příjmy | H94: 300 | I94: 300 | J94: 1474.21 | K94: -1174.21 | L94: 491.4 | M94: 554.43 | N94: 265.8965063
A95: 4 | B95: 41 | C95: 4111 | D95: Neinvestiční přijaté transfery z všeobecné pokladní správy státního rozpočtu-Volba prezidenta ČR | G95: 0000098008 | H95: 594 | I95: 552.81896 | J95: 552.81896 | K95: 0 | L95: 100
A96: 4 | B96: 41 | C96: 4111 | D96: Neinvestiční přijaté transfery z všeobecné pokladní správy státního rozpočtu-Volby-zastupit.obce (Obec Hojanovice) | G96: 0000098074 | H96: 0 | I96: 8.413 | J96: 8.413 | K96: 0 | L96: 100
A97: 4 | B97: 41 | C97: 4112 | D97: Neinvestiční přijaté transfery ze SR v rámci souhrnného dotačního vztahu | H97: 22497.9 | I97: 22497.9 | J97: 14998.4 | K97: 7499.5 | L97: 66.66577769 | M97: 14076.8 | N97: 106.5469425
A98: 4 | B98: 41 | C98: 4116 | D98: Ostatní neinvestiční přijaté transfery ze státního rozpočtu-dotace na výkon sociální práce (vyjma SPOD) | G98: 0000013015 | H98: 0 | I98: 496.574 | J98: 496.574 | K98: 0 | L98: 100 | M98: 463.144 | N98: 107.2180575
A99: 4 | B99: 41 | C99: 4116 | D99: Ostatní neinvestiční přijaté transfery ze státního rozpočtu-dotace sociálně-právní ochrana dětí | G99: 0000013024 | H99: 0 | I99: 2560.4 | J99: 2560.4 | K99: 0 | L99: 100 | M99: 2305.1 | N99: 111.0754414
A100: 4 | B100: 41 | C100: 4116 | D100: Ostatní neinvestiční přijaté transfery ze státního rozpočtu-MŠMT Šablony OP JAK-podpora ZŠ Hálkova-průtok.neinv.dotace | G100: 0000321002 | H100: 0 | I100: 0 | J100: 4102.812 | K100: -4102.812 | L100: 0
A101: 4 | B101: 41 | C101: 4116 | D101: Ostatní neinvestiční přijaté transfery ze státního rozpočtu-MZE-Oprava a odbahnění rybníků Velký (p.č.62) a Malý (p.č.61)v k.ú. Petrovice u HU | G101: 0234100002 | H101: 0 | I101: 0 | J101: 77 | K101: -77 | L101: 0
A102: 4 | B102: 41 | C102: 4116 | D102: Ostatní neinvestiční přijaté transfery ze státního rozpočtu-MZE-Oprava a odbahnění rybníka Kamšovák (p.č. 524/1)v k.ú.Petrovice u HU | G102: 0234100003 | H102: 0 | I102: 17 | J102: 17 | K102: 0 | L102: 100
A103: 4 | B103: 41 | C103: 4116 | D103: Ostatní neinvestiční přijaté transfery ze státního rozpočtu-OÚE-průtok neinv.dotace MŠMT "Šablony OP JAK" pro MŠ HU | G103: 0311100007 | H103: 0 | I103: 0 | J103: 1323.274 | K103: -1323.274 | L103: 0
A104: 4 | B104: 41 | C104: 4116 | D104: Ostatní neinvestiční přijaté transfery ze státního rozpočtu-Průtok-MěKIS neinv.dotace od MKČR-Příroda v knihovně | G104: 0331900026 | H104: 0 | I104: 15 | J104: 15 | K104: 0 | L104: 100
A105: 4 | B105: 41 | C105: 4121 | D105: Neinvestiční přijaté transfery od obcí - za školní obědy 1-6/2023 a výkon přenesené působnosti za rok 2022 | H105: 0 | I105: 313.678 | J105: 313.678 | K105: 0 | L105: 100
A106: 4 | B106: 41 | C106: 4122 | D106: Neinvestiční přijaté transfery od krajů-OÚE-Humpolecké vánoční kluziště | G106: 0342900024 | H106: 0 | I106: 60 | J106: 60 | K106: 0 | L106: 100
A107: POL(2) 41 Neinvestiční přijaté transfery | H107: 23091.9 | I107: 26521.78 | J107: 24525.36 | K107: 1996.42 | L107: 92.47 | M107: 18974.2 | N107: 129.2563586
A108: 4 | B108: 42 | C108: 4216 | D108: Ostatní investiční přijaté transfery ze státního rozpočtu-MZE-Oprava a odbahnění rybníků Velký (p.č.62) a Malý (p.č.61)v k.ú. Petrovice u HU | G108: 0234100002 | H108: 0 | I108: 0 | J108: 1923 | K108: -1923 | L108: 0
A109: 4 | B109: 42 | C109: 4216 | D109: Ostatní investiční přijaté transfery ze státního rozpočtu-MZE-Oprava a odbahnění rybníka Kamšovák (p.č. 524/1)v k.ú.Petrovice u HU | G109: 0234100003 | H109: 0 | I109: 1125.038 | J109: 1678 | K109: -552.962 | L109: 149.1505176
A110: 4 | B110: 42 | C110: 4222 | D110: Investiční přijaté transfery od krajů-OÚE-ICT 2022-Napojení LPR kamer PČR na optickou síť a trasování směr Želiv | G110: 0617100027 | H110: 209.206 | I110: 219.206 | J110: 219.206 | K110: 0 | L110: 100
A111: POL(2) 42 Investiční přijaté transfery | H111: 209.21 | I111: 1344.25 | J111: 3820.21 | K111: -2475.96 | L111: 284.19 | M111: 1137.8 | N111: 335.7540868
A112: POL(1) 4 Přijaté transfery | H112: 23301.11 | I112: 27866.03 | J112: 28345.57 | K112: -479.54 | L112: 101.72 | M112: 20112 | N112: 140.9385939
A113: Celkem PŘÍJMY | H113: 414315.41 | I113: 421951.78 | J113: 309193.43 | K113: 112758.36 | L113: 73.28 | M113: 290418.88 | N113: 106.4646451
A115: Podmínka: AND POL=8*
A116: POL(1) | B116: POL(2) | C116: POL(4) | D116: Popis | E116: ODPA(4) | F116: Popis | G116: ORG | H116: 2023
H117: Schválený rozp. | I117: Upravený rozp. | J117: Skutečnost k 31. 08. | K117: Plnění v Kč k UR | L117: Plnění v % k UR | M117: Skutečnost k 31.8.2022 | N117: SK23/SK22 v %
A118: 8 | B118: 81 | C118: 8115 | D118: Změny stavů krátkodobých prostředků na bankovních účtech kromě OSFA | H118: 209873.7168 | I118: 206534.9769 | J118: 213352.781 | K118: -6817.8042 | L118: 103.301041 | M118: 86139.48402 | N118: =J118/M118*100 -> 247.6829104
A119: 8 | B119: 81 | C119: 8117 | D119: Aktivní krátkodobé operace řízení likvidity - příjmy | F119: ČSOB Term.týdenní vklad | H119: 167000 | I119: 167000 | J119: 0 | K119: 167000 | L119: 0 | M119: 0
A120: 8 | B120: 81 | C120: 8118 | D120: Aktivní krátkodobé operace řízení likvidity - výdaje | F120: ČSOB Term.týdenní vklad | H120: -167000 | I120: -167000 | J120: -167000 | K120: 0 | L120: 100 | M120: -159500 | N120: 104.7021944
A121: 8 | B121: 81 | C121: 8124 | D121: Uhrazené splátky dlouhodobých přijatých půjčených prostř. | H121: -33831.22736 | I121: -33831.22736 | J121: -32690.7562 | K121: -1140.47116 | L121: 96.62893945 | M121: -3140.47116 | N121: 1040.95069
A122: POL(2) 81 Financování z tuzemska | H122: 176042.49 | I122: 172703.75 | J122: 13662.02 | K122: 159041.73 | L122: 7.91 | M122: -76500.99 | N122: -17.85861856
A123: 8 | B123: 89 | C123: 8901 | D123: Operace z peněžních účtů organizace nemající charakter příjmů/výdajů | E123: DPH | H123: 0 | I123: 0 | J123: -800.13744 | K123: 800.13744 | L123: 0 | M123: -1412.11764 | N123: 56.66223672
A124: POL(2) 89 Opravné položky k peněžním operacím | H124: 0 | I124: 0 | J124: -800.14 | K124: 800.14 | L124: 0 | M124: -1412.12 | N124: 56.66232332
A125: POL(1) 8 Financování | H125: 176042.49 | I125: 172703.75 | J125: 12861.88 | K125: 159841.87 | L125: 7.45 | M125: -77913.11 | N125: -16.50797921
A126: Celkem PŘÍJMY + FINANCOVÁNÍ | H126: =H125+H113 -> 590357.9 | I126: =I125+I113 -> 594655.53 | J126: 322055.31 | K126: 272600.23 | L126: =J126/I126*100 -> 54.15829733 | M126: =M125+M113 -> 212505.77 | N126: 151.5513249
F128: alikvotní podíl 66,7 %
H130: 2023
H131: Schválený rozp. | I131: Upravený rozp. | J131: Skutečnost k 31. 08. | K131: Plnění v Kč k UR | L131: Plnění v % k UR | M131: Skutečnost k 31.8.2022
A132: PŘÍJMY | H132: =H113 -> 414315.41 | I132: =I113 -> 421951.78 | J132: 309193.43 | K132: 112758.36 | L132: =J132/I132*100 -> 73.27695833 | M132: 290418.88
A133: Běžné výdaje | H133: 363339.91 | I133: 361595.54 | J133: 209531.04 | K133: 152064.67 | L133: 57.95 | M133: 172277.43
A134: z toho: | C134: 5171 | D134: opravy a udržování | H134: 41106 | I134: 36720 | J134: 10726.17 | K134: 25993.84 | L134: 29.21 | M134: 9015.82
A135: Kapitálové výdaje | H135: 227018 | I135: 233060 | J135: 112524.41 | K135: 120535.64 | L135: 48.28 | M135: 40228.34
A136: Celkem výdaje | H136: =SUM(H135,H133) -> 590357.91 | I136: =SUM(I135,I133) -> 594655.54 | J136: 322055.45 | K136: 272600.31 | L136: =J136/I136*100 -> 54.15831996 | M136: 212505.77
A137: Rozpočtový výsledek hospodaření: (- schodek) | H137: =H132-H136 -> -176042.5 | I137: =I132-I136 -> -172703.76 | J137: =J132-J136 -> -12862.02 | K137: =K132-K136 -> -159841.95 | L137: =J137/I137*100 -> 7.447446425 | M137: =M132-M136 -> 77913.11
A138: snížení schodku o úroky na term.vkladu (v okamžiku převodu úroků z TV na běžný účet) na 10 979 tis. Kč | J138: 1882.745
A139: Běžné příjmy (třída 1 + 2 + tř.4 neinvestiční transfery) | H139: =H28+H90+H107 -> 413806.2 | I139: =I28+I90+I107 -> 420307.53 | J139: =J28+J90+J107 -> 303899.01 | K139: =K28+K90+K107 -> 116408.53 | L139: =J139/I139*100 -> 72.30396515 | M139: =M28+M90+M107 -> 288726.65
A140: Běžné výdaje | H140: =H133 -> 363339.91 | I140: =I133 -> 361595.54 | J140: 209531.04 | K140: 152064.67 | L140: =J140/I140*100 -> 57.94624569 | M140: =M133 -> 172277.43
A141: Provozní saldo (běžné příjmy mínus běžné výdaje) | H141: =H139-H140 -> 50466.29 | I141: =I139-I140 -> 58711.99 | J141: 94367.97 | K141: -35656.14 | M141: 116449.22
A142: Ukazatel provozního salda, tj. % podíl provozního salda na běžných příjmech | H142: =H141/H139*100 -> 12.19563409 | I142: =I141/I139*100 -> 13.96881707 | J142: =J141/J139*100 -> 31.05241113 | M142: =M141/M139*100 -> 40.33199568

Sheet BV 082023
A1: 00248266 Město Humpolec
A2: Horní náměstí 300 Humpolec
A3: Plnění rozpisu rozpočtu běžných výdajů k 31.08.2023 v tisících Kč
A5: ODPA(2) | B5: Popis | C5: ODPA(4) | D5: Popis | E5: POL(4) | F5: Popis | G5: ORG | H5: Popis | I5: 2023
I6: Schválený rozp. | J6: Upravený rozp. | K6: Skutečnost k 31. 08. | L6: Plnění v Kč k UR | M6: Plnění v % k UR
A7: 10 | B7: Zemědělství, lesní hospodářství a rybářství | C7: 1014 | D7: Ozdravování hospodářských zvířat, polních a speciálních plodin a zvláštní veterinární péče | E7: 5137 | F7: Drobný dlouhodobý hmotný majetek | G7: 0101400001 | H7: Péče o opuštěná zvířata | I7: 10 | J7: 10 | K7: 5.315 | L7: 4.685 | M7: 53.15
A8: 10 | B8: Zemědělství, lesní hospodářství a rybářství | C8: 1014 | D8: Ozdravování hospodářských zvířat, polních a speciálních plodin a zvláštní veterinární péče | E8: 5169 | F8: Nákup ostatních služeb | G8: 0101400001 | H8: Péče o opuštěná zvířata | I8: 400 | J8: 400 | K8: 237.811 | L8: 162.189 | M8: 59.45275
A9: 10 | B9: Zemědělství, lesní hospodářství a rybářství | C9: 1014 | D9: Ozdravování hospodářských zvířat, polních a speciálních plodin a zvláštní veterinární péče | E9: 5169 | F9: Nákup ostatních služeb | G9: 0101400002 | H9: Deratizace | I9: 198 | J9: 198 | K9: 0.07865 | L9: 197.92135 | M9: 0.03972222222
A10: 10 | B10: Zemědělství, lesní hospodářství a rybářství | C10: 1014 | D10: Ozdravování hospodářských zvířat, polních a speciálních plodin a zvláštní veterinární péče | E10: 5169 | F10: Nákup ostatních služeb | G10: 0101400003 | H10: Kastrace koček | I10: 20 | J10: 20 | K10: 1.7 | L10: 18.3 | M10: 8.5
A11: 10 | B11: Zemědělství, lesní hospodářství a rybářství | C11: 1014 | D11: Ozdravování hospodářských zvířat, polních a speciálních plodin a zvláštní veterinární péče | E11: 5492 | F11: Dary fyzickým osobám | G11: 0101400003 | H11: Kastrace koček | I11: 50 | J11: 50 | K11: 2 | L11: 48 | M11: 4
A12: 10 | B12: Zemědělství, lesní hospodářství a rybářství | C12: 1039 | D12: Ostatní záležitosti lesního hospodářství | E12: 5169 | F12: Nákup ostatních služeb | G12: 0103900001 | H12: Lesní hosp.-odborný lesní hospodář | I12: 270 | J12: 290 | K12: 190.611 | L12: 99.389 | M12: 65.72793103
A13: 10 | B13: Zemědělství, lesní hospodářství a rybářství | C13: 1039 | D13: Ostatní záležitosti lesního hospodářství | E13: 5169 | F13: Nákup ostatních služeb | G13: 0103900004 | H13: Ostatní lesnické práce | I13: 20 | J13: 0 | K13: 0 | L13: 0 | M13: 0
A14: 10 | B14: Zemědělství, lesní hospodářství a rybářství | C14: 1039 | D14: Ostatní záležitosti lesního hospodářství | E14: 5171 | F14: Opravy a udržování | G14: 0103900005 | H14: Opravy lesních cest | I14: 600 | J14: 600 | K14: 23.051 | L14: 576.949 | M14: 3.841833333
A15: 10 | B15: Zemědělství, lesní hospodářství a rybářství | C15: 1039 | D15: Ostatní záležitosti lesního hospodářství | E15: 5179 | F15: Ostatní nákupy jinde nezařazené | G15: 0103900006 | H15: Sdružení vlastníků obecních a soukromých lesů ČR-členský příspěvek | I15: 12 | J15: 12 | K15: 6.12 | L15: 5.88 | M15: 51
A16: ODPA(2) 10 Zemědělství, lesní hospodářství a rybářství | I16: 1580 | J16: 1580 | K16: 466.69 | L16: 1113.32 | M16: 29.54
A17: 21 | B17: Průmysl, stavebnictví, obchod a služby | C17: 2141 | D17: Vnitřní obchod | E17: 5137 | F17: Drobný dlouhodobý hmotný majetek | G17: 0214100003 | H17: Trhy - DDHM | I17: 15 | J17: 15 | K17: 0 | L17: 15 | M17: 0
A18: 21 | B18: Průmysl, stavebnictví, obchod a služby | C18: 2141 | D18: Vnitřní obchod | E18: 5139 | F18: Nákup materiálu jinde nezařazený | G18: 0214100001 | H18: Trhy-materiál | I18: 20 | J18: 20 | K18: 0 | L18: 20 | M18: 0
A19: 21 | B19: Průmysl, stavebnictví, obchod a služby | C19: 2141 | D19: Vnitřní obchod | E19: 5169 | F19: Nákup ostatních služeb | G19: 0214100002 | H19: Trhy-služby | I19: 140 | J19: 200 | K19: 25.726 | L19: 174.274 | M19: 12.863
A20: ODPA(2) 21 Průmysl, stavebnictví, obchod a služby | I20: 175 | J20: 235 | K20: 25.73 | L20: 209.27 | M20: 10.95
A21: 22 | B21: Doprava | C21: 2212 | D21: Silnice | E21: 5166 | F21: Konzultační, poradenské a právní služby | G21: 0221200001 | H21: Studie komunikací | I21: 500 | J21: 530 | K21: 15.837 | L21: 514.163 | M21: 2.988113208
A22: 22 | B22: Doprava | C22: 2212 | D22: Silnice | E22: 5166 | F22: Konzultační, poradenské a právní služby | G22: 0221200157 | H22: Dopravní model města | I22: 300 | J22: 300 | K22: 0 | L22: 300 | M22: 0
A23: 22 | B23: Doprava | C23: 2212 | D23: Silnice | E23: 5166 | F23: Konzultační, poradenské a právní služby | G23: 0221200158 | H23: Křižovatka Billa-studie | I23: 400 | J23: 400 | K23: 0 | L23: 400 | M23: 0
A24: 22 | B24: Doprava | C24: 2212 | D24: Silnice | E24: 5169 | F24: Nákup ostatních služeb | G24: 0221200002 | H24: Čištění komunikací | I24: 3100 | J24: 3100 | K24: 2008.635 | L24: 1091.365 | M24: 64.79467742
A25: 22 | B25: Doprava | C25: 2212 | D25: Silnice | E25: 5169 | F25: Nákup ostatních služeb | G25: 0221200003 | H25: Čištění MK- vybrané akce | I25: 120 | J25: 120 | K25: 1.862 | L25: 118.138 | M25: 1.551666667
A26: 22 | B26: Doprava | C26: 2212 | D26: Silnice | E26: 5169 | F26: Nákup ostatních služeb | G26: 0221200004 | H26: Čištění MK- psí exkrementy | I26: 700 | J26: 700 | K26: 208.957 | L26: 491.043 | M26: 29.851
A27: 22 | B27: Doprava | C27: 2212 | D27: Silnice | E27: 5169 | F27: Nákup ostatních služeb | G27: 0221200005 | H27: Zimní údržba komunikací | I27: 2800 | J27: 2800 | K27: 1470.72715 | L27: 1329.27285 | M27: 52.52596964
A28: 22 | B28: Doprava | C28: 2212 | D28: Silnice | E28: 5169 | F28: Nákup ostatních služeb | G28: 0221200009 | H28: Opravy MK město | I28: 0 | J28: 50 | K28: 0 | L28: 50 | M28: 0
A29: 22 | B29: Doprava | C29: 2212 | D29: Silnice | E29: 5171 | F29: Opravy a udržování | G29: 0221200006 | H29: Dopravní značení-zrcadla | I29: 90 | J29: 90 | K29: 29.001 | L29: 60.999 | M29: 32.22333333
A30: 22 | B30: Doprava | C30: 2212 | D30: Silnice | E30: 5171 | F30: Opravy a udržování | G30: 0221200008 | H30: Údržba kanalizačních vpustí | I30: 400 | J30: 400 | K30: 179.558 | L30: 220.442 | M30: 44.8895
A31: 22 | B31: Doprava | C31: 2212 | D31: Silnice | E31: 5171 | F31: Opravy a udržování | G31: 0221200009 | H31: Opravy MK město | I31: 2000 | J31: 1850 | K31: 306.897 | L31: 1543.103 | M31: 16.58902703
A32: 22 | B32: Doprava | C32: 2212 | D32: Silnice | E32: 5171 | F32: Opravy a udržování | G32: 0221200010 | H32: Opravy MK-místní části | I32: 2000 | J32: 1970 | K32: 401.70435 | L32: 1568.29565 | M32: 20.39108376
A33: 22 | B33: Doprava | C33: 2212 | D33: Silnice | E33: 5171 | F33: Opravy a udržování | G33: 0221200021 | H33: Dopravní značení - město | I33: 300 | J33: 400 | K33: 277.296 | L33: 122.704 | M33: 69.324
A34: 22 | B34: Doprava | C34: 2212 | D34: Silnice | E34: 5171 | F34: Opravy a udržování | G34: 0221200022 | H34: Údržba přechodů | I34: 300 | J34: 300 | K34: 0 | L34: 300 | M34: 0
A35: 22 | B35: Doprava | C35: 2212 | D35: Silnice | E35: 5171 | F35: Opravy a udržování | G35: 0221200062 | H35: Dopravní značení MČ | I35: 130 | J35: 130 | K35: 70.709 | L35: 59.291 | M35: 54.39153846
A36: 22 | B36: Doprava | C36: 2212 | D36: Silnice | E36: 5171 | F36: Opravy a udržování | G36: 0221200072 | H36: Opravy MK-metoda infra | I36: 700 | J36: 700 | K36: 0 | L36: 700 | M36: 0
A37: 22 | B37: Doprava | C37: 2212 | D37: Silnice | E37: 5171 | F37: Opravy a udržování | G37: 0221200140 | H37: Označení ulic-nové cedule | I37: 180 | J37: 180 | K37: 0 | L37: 180 | M37: 0
A38: 22 | B38: Doprava | C38: 2212 | D38: Silnice | E38: 5171 | F38: Opravy a udržování | G38: 0221200149 | H38: Radary měření rychlosti-opravy | I38: 100 | J38: 100 | K38: 0 | L38: 100 | M38: 0
A39: 22 | B39: Doprava | C39: 2219 | D39: Ostatní záležitosti pozemních komunikací | E39: 5166 | F39: Konzultační, poradenské a právní služby | G39: 0221900001 | H39: Studie a projekty chodníků | I39: 250 | J39: 250 | K39: 29.712 | L39: 220.288 | M39: 11.8848
A40: 22 | B40: Doprava | C40: 2219 | D40: Ostatní záležitosti pozemních komunikací | E40: 5169 | F40: Nákup ostatních služeb | G40: 0221900007 | H40: Zimní údržba chodníků | I40: 1200 | J40: 1200 | K40: 522.446 | L40: 677.554 | M40: 43.53716667
A41: 22 | B41: Doprava | C41: 2219 | D41: Ostatní záležitosti pozemních komunikací | E41: 5169 | F41: Nákup ostatních služeb | G41: 0221900074 | H41: Mlžící rám-město-zařízení pro osvěž.vzduchu-inst. | I41: 5 | J41: 5 | K41: 3.466 | L41: 1.534 | M41: 69.32
A42: 22 | B42: Doprava | C42: 2219 | D42: Ostatní záležitosti pozemních komunikací | E42: 5171 | F42: Opravy a udržování | G42: 0221900002 | H42: Opravy chodníků | I42: 450 | J42: 450 | K42: 172.722 | L42: 277.278 | M42: 38.38266667
A43: 22 | B43: Doprava | C43: 2221 | D43: Provoz veřejné silniční dopravy | E43: 5171 | F43: Opravy a udržování | G43: 0222100001 | H43: Opravy autobusových čekáren | I43: 100 | J43: 100 | K43: 5.746 | L43: 94.254 | M43: 5.746
A44: 22 | B44: Doprava | C44: 2229 | D44: Ostatní záležitosti v silniční dopravě | E44: 5169 | F44: Nákup ostatních služeb | G44: 0222900001 | H44: Likvidace autovraků | I44: 20 | J44: 20 | K44: 0 | L44: 20 | M44: 0
A45: 22 | B45: Doprava | C45: 2292 | D45: Dopravní obslužnost veřejnými službami-linková | E45: 5213 | F45: Neinvestiční transfery nefinančním podnikatelům-právnickým osobám | G45: 0229200002 | H45: Dopravní obslužnost | I45: 80 | J45: 80 | K45: 25.33892 | L45: 54.66108 | M45: 31.67365
A46: ODPA(2) 22 Doprava | I46: 16225 | J46: 16225 | K46: 5730.64 | L46: 10494.37 | M46: 35.32
A47: 23 | B47: Vodní hospodářství | C47: 2310 | D47: Pitná voda | E47: 5151 | F47: Studená voda včetně stočného a úplaty za odvod deštových vod | G47: 0231000001 | H47: Voda - nákup pitné vody | I47: 8000 | J47: 8000 | K47: 4472.00854 | L47: 3527.99146 | M47: 55.90010675
A48: 23 | B48: Vodní hospodářství | C48: 2310 | D48: Pitná voda | E48: 5164 | F48: Nájemné | G48: 0231000001 | H48: Voda - nákup pitné vody | I48: 4 | J48: 4 | K48: 0 | L48: 4 | M48: 0
A49: 23 | B49: Vodní hospodářství | C49: 2310 | D49: Pitná voda | E49: 5166 | F49: Konzultační, poradenské a právní služby | G49: 0231000002 | H49: Voda - nové studie | I49: 100 | J49: 100 | K49: 0 | L49: 100 | M49: 0
A50: 23 | B50: Vodní hospodářství | C50: 2310 | D50: Pitná voda | E50: 5169 | F50: Nákup ostatních služeb | G50: 0231000010 | H50: Vodovod - provozovatelská smlouva | I50: 14200 | J50: 14200 | K50: 7223.87848 | L50: 6976.12152 | M50: 50.87238366
A51: 23 | B51: Vodní hospodářství | C51: 2310 | D51: Pitná voda | E51: 5169 | F51: Nákup ostatních služeb | G51: 0231000057 | H51: Oprava vodovodu ul.5.května (PD) | I51: 160 | J51: 160 | K51: 0 | L51: 160 | M51: 0
A52: 23 | B52: Vodní hospodářství | C52: 2310 | D52: Pitná voda | E52: 5169 | F52: Nákup ostatních služeb | G52: 0231000058 | H52: Oprava vodovodu ul.Hradská (PD) | I52: 130 | J52: 130 | K52: 0 | L52: 130 | M52: 0
A53: 23 | B53: Vodní hospodářství | C53: 2310 | D53: Pitná voda | E53: 5169 | F53: Nákup ostatních služeb | G53: 0231000059 | H53: Oprava vodovodu ul.Vosmíkova (PD) | I53: 120 | J53: 120 | K53: 0 | L53: 120 | M53: 0
A54: 23 | B54: Vodní hospodářství | C54: 2310 | D54: Pitná voda | E54: 5171 | F54: Opravy a udržování | G54: 0231000011 | H54: Vodovod - běžné opravy | I54: 2000 | J54: 2000 | K54: 134.14345 | L54: 1865.85655 | M54: 6.7071725
A55: 23 | B55: Vodní hospodářství | C55: 2321 | D55: Odvádění a čištění odpadních vod a nakládání s kaly | E55: 5166 | F55: Konzultační, poradenské a právní služby | G55: 0232100001 | H55: Kanalizace-studie (ČOV Humpolec,...) | I55: 250 | J55: 360 | K55: 0 | L55: 360 | M55: 0
A56: 23 | B56: Vodní hospodářství | C56: 2321 | D56: Odvádění a čištění odpadních vod a nakládání s kaly | E56: 5166 | F56: Konzultační, poradenské a právní služby | G56: 0232100042 | H56: Čištění Světlice-Plačkov (studie proveditelnosti) | I56: 500 | J56: 500 | K56: 0 | L56: 500 | M56: 0
A57: 23 | B57: Vodní hospodářství | C57: 2321 | D57: Odvádění a čištění odpadních vod a nakládání s kaly | E57: 5166 | F57: Konzultační, poradenské a právní služby | G57: 0232100057 | H57: Řešení likvidace a odvádění dešťových vod ul. Pelhřimovská (STUDIE) | I57: 0 | J57: 100 | K57: 0 | L57: 100 | M57: 0
A58: 23 | B58: Vodní hospodářství | C58: 2321 | D58: Odvádění a čištění odpadních vod a nakládání s kaly | E58: 5169 | F58: Nákup ostatních služeb | G58: 0232100004 | H58: Provoz ČOV v LTRN | I58: 300 | J58: 300 | K58: 163.3192 | L58: 136.6808 | M58: 54.43973333
A59: 23 | B59: Vodní hospodářství | C59: 2321 | D59: Odvádění a čištění odpadních vod a nakládání s kaly | E59: 5169 | F59: Nákup ostatních služeb | G59: 0232100007 | H59: Kanalizace - provozovatelská smlouva | I59: 17100 | J59: 17100 | K59: 9355.14453 | L59: 7744.85547 | M59: 54.70844754
A60: 23 | B60: Vodní hospodářství | C60: 2321 | D60: Odvádění a čištění odpadních vod a nakládání s kaly | E60: 5169 | F60: Nákup ostatních služeb | G60: 0232100049 | H60: Oprava kanalizace-5.května (PD) | I60: 120 | J60: 120 | K60: 0 | L60: 120 | M60: 0
A61: 23 | B61: Vodní hospodářství | C61: 2321 | D61: Odvádění a čištění odpadních vod a nakládání s kaly | E61: 5169 | F61: Nákup ostatních služeb | G61: 0232100050 | H61: Oprava kanalizace-Hradská (PD) | I61: 200 | J61: 200 | K61: 0 | L61: 200 | M61: 0
A62: 23 | B62: Vodní hospodářství | C62: 2321 | D62: Odvádění a čištění odpadních vod a nakládání s kaly | E62: 5169 | F62: Nákup ostatních služeb | G62: 0232100051 | H62: Oprava kanalizace-Vosmíkova (PD) | I62: 160 | J62: 160 | K62: 0 | L62: 160 | M62: 0
A63: 23 | B63: Vodní hospodářství | C63: 2321 | D63: Odvádění a čištění odpadních vod a nakládání s kaly | E63: 5171 | F63: Opravy a udržování | G63: 0232100008 | H63: Kanalizace - běžné opravy | I63: 2000 | J63: 1960 | K63: 759.73037 | L63: 1200.26963 | M63: 38.76175357
A64: 23 | B64: Vodní hospodářství | C64: 2341 | D64: Vodní díla v zemědělské krajině | E64: 5169 | F64: Nákup ostatních služeb | G64: 0234100001 | H64: Oprava návesních rybníků Petrovice | I64: 200 | J64: 200 | K64: 146.59 | L64: 53.41 | M64: 73.295
A65: 23 | B65: Vodní hospodářství | C65: 2341 | D65: Vodní díla v zemědělské krajině | E65: 5171 | F65: Opravy a udržování | G65: 0234100002 | H65: OÚE-Oprava a odbahnění rybníků Velký (p.č.62) a Malý (p.č.61)v k.ú. Petrovice u HU | I65: 3440 | J65: 880 | K65: 405.66218 | L65: 474.33782 | M65: 46.097975
A66: 23 | B66: Vodní hospodářství | C66: 2341 | D66: Vodní díla v zemědělské krajině | E66: 5171 | F66: Opravy a udržování | G66: 0234100003 | H66: OÚE-Oprava a odbahnění rybníka Kamšovák (p.č. 524/1)v k.ú.Petrovice u HU | I66: 3060 | J66: 850 | K66: 632.489 | L66: 217.511 | M66: 74.41047059
A67: ODPA(2) 23 Vodní hospodářství | I67: 52044 | J67: 47444 | K67: 23292.96 | L67: 24151.04 | M67: 49.1
A68: 31 | B68: Vzdělávání a školské služby | C68: 3111 | D68: Mateřské školy | E68: 5137 | F68: Drobný dlouhodobý hmotný majetek | G68: 0311100006 | H68: Vybavení školní zahrady MŠ Podhrad | I68: 0 | J68: 352 | K68: 345.22987 | L68: 6.77013 | M68: 98.07666761
A69: 31 | B69: Vzdělávání a školské služby | C69: 3111 | D69: Mateřské školy | E69: 5331 | F69: Neinvestiční příspěvky zřízeným příspěvkovým organizacím | G69: 0000000301 | H69: Mateřská škola | I69: 6090 | J69: 7839 | K69: 4666 | L69: 3173 | M69: 59.52289833
A70: 31 | B70: Vzdělávání a školské služby | C70: 3111 | D70: Mateřské školy | E70: 5331 | F70: Neinvestiční příspěvky zřízeným příspěvkovým organizacím | G70: 0311100301 | H70: MŠ spec.pedagog | I70: 100 | J70: 100 | K70: 20.7 | L70: 79.3 | M70: 20.7
A71: 31 | B71: Vzdělávání a školské služby | C71: 3111 | D71: Mateřské školy | E71: 5336 | F71: Neinvestiční transfery zřízeným příspěvkovým organizacím | G71: 0311100007 | H71: OÚE-průtok neinv.dotace MŠMT "Šablony OP JAK" pro MŠ HU | I71: 0 | J71: 0 | K71: 1323.274 | L71: -1323.274 | M71: 0
A72: 31 | B72: Vzdělávání a školské služby | C72: 3111 | D72: Mateřské školy | E72: 5901 | F72: Nespecifikované rezervy | G72: 0311100005 | H72: Provoz a drobné vybavení pracoviště a zahrady MŠ Podhrad | I72: 2000 | J72: 0 | K72: 0 | L72: 0 | M72: 0
A73: 31 | B73: Vzdělávání a školské služby | C73: 3113 | D73: Základní školy | E73: 5166 | F73: Konzultační, poradenské a právní služby | G73: 0311300004 | H73: Rozšíření kapacit základních škol v Humpolci | I73: 800 | J73: 800 | K73: 155.485 | L73: 644.515 | M73: 19.435625
A74: 31 | B74: Vzdělávání a školské služby | C74: 3113 | D74: Základní školy | E74: 5331 | F74: Neinvestiční příspěvky zřízeným příspěvkovým organizacím | G74: 0000000321 | H74: ZŠ Hálkova | I74: 10587 | J74: 10607 | K74: 6872.2 | L74: 3734.8 | M74: 64.78929009
A75: 31 | B75: Vzdělávání a školské služby | C75: 3113 | D75: Základní školy | E75: 5331 | F75: Neinvestiční příspěvky zřízeným příspěvkovým organizacím | G75: 0000000322 | H75: ZŠ Hradská | I75: 7992 | J75: 7772 | K75: 5275.2 | L75: 2496.8 | M75: 67.874421
A76: 31 | B76: Vzdělávání a školské služby | C76: 3113 | D76: Základní školy | E76: 5331 | F76: Neinvestiční příspěvky zřízeným příspěvkovým organizacím | G76: 0311300001 | H76: ZŠ spec.pedag, šk.psycholog | I76: 400 | J76: 400 | K76: 128.544 | L76: 271.456 | M76: 32.136
A77: 31 | B77: Vzdělávání a školské služby | C77: 3113 | D77: Základní školy | E77: 5331 | F77: Neinvestiční příspěvky zřízeným příspěvkovým organizacím | G77: 0999000321 | H77: Neinv.příspěvek-ZŠ Hálkova-participativní rozpočet | I77: 100 | J77: 100 | K77: 0 | L77: 100 | M77: 0
A78: 31 | B78: Vzdělávání a školské služby | C78: 3113 | D78: Základní školy | E78: 5331 | F78: Neinvestiční příspěvky zřízeným příspěvkovým organizacím | G78: 0999000322 | H78: Neinv.příspěvek-ZŠ Hradská-participativní rozpočet | I78: 100 | J78: 100 | K78: 100 | L78: 0 | M78: 100
A79: 31 | B79: Vzdělávání a školské služby | C79: 3113 | D79: Základní školy | E79: 5336 | F79: Neinvestiční transfery zřízeným příspěvkovým organizacím | G79: 0000321002 | H79: MŠMT Šablony OP JAK-podpora ZŠ Hálkova-průtok.neinv.dotace | I79: 0 | J79: 0 | K79: 4102.812 | L79: -4102.812 | M79: 0
A80: 31 | B80: Vzdělávání a školské služby | C80: 3119 | D80: Ostatní záležitosti základního vzdělávání | E80: 5169 | F80: Nákup ostatních služeb | G80: 0311900001 | H80: Projekt Post Bellum | I80: 150 | J80: 150 | K80: 139.95 | L80: 10.05 | M80: 93.3
A81: 31 | B81: Vzdělávání a školské služby | C81: 3121 | D81: Gymnázia | E81: 5339 | F81: Neinvestiční transfery cizím příspěvkovým organizacím | G81: 0312100001 | H81: Dotace B3-Gymnázium Dr.A.Hrdličky (projekty školy,spolupráce se ZUŠ a ZŠ) | I81: 0 | J81: 54 | K81: 54 | L81: 0 | M81: 100
A82: 31 | B82: Vzdělávání a školské služby | C82: 3121 | D82: Gymnázia | E82: 5339 | F82: Neinvestiční transfery cizím příspěvkovým organizacím | G82: 0999312101 | H82: Dar particip.rozpočet-Gymnázium Dr.A.Hrdličky | I82: 100 | J82: 100 | K82: 100 | L82: 0 | M82: 100
A83: ODPA(2) 31 Vzdělávání a školské služby | I83: 28419 | J83: 28374 | K83: 23283.39 | L83: 5090.62 | M83: 82.06
A84: 32 | B84: Vzdělávání a školské služby | C84: 3231 | D84: Základní umělecké školy | E84: 5331 | F84: Neinvestiční příspěvky zřízeným příspěvkovým organizacím | G84: 0000000324 | H84: ZUŠ | I84: 880 | J84: 880 | K84: 660 | L84: 220 | M84: 75
A85: 32 | B85: Vzdělávání a školské služby | C85: 3233 | D85: Střediska volného času | E85: 5331 | F85: Neinvestiční příspěvky zřízeným příspěvkovým organizacím | G85: 0000000325 | H85: SVČ | I85: 3866 | J85: 3506 | K85: 2511.6 | L85: 994.4 | M85: 71.63719338
A86: 32 | B86: Vzdělávání a školské služby | C86: 3299 | D86: Ostatní záležitosti vzdělávání | E86: 5222 | F86: Neinvestiční transfery spolkům | G86: 0329900001 | H86: Dotace B2-Vzdělávání pro budoucnost,z.s. (činnost) | I86: 18 | J86: 18 | K86: 18 | L86: 0 | M86: 100
A87: ODPA(2) 32 Vzdělávání a školské služby | I87: 4764 | J87: 4404 | K87: 3189.6 | L87: 1214.4 | M87: 72.43
A88: 33 | B88: Kultura, církve a sdělovací prostředky | C88: 3312 | D88: Hudební činnost | E88: 5222 | F88: Neinvestiční transfery spolkům | G88: 0331200001 | H88: Dotace B2-Spol.pro rozvoj kulturních tradic Vysočiny (hudební slavnosti) | I88: 100 | J88: 100 | K88: 100 | L88: 0 | M88: 100
A89: 33 | B89: Kultura, církve a sdělovací prostředky | C89: 3313 | D89: Filmová tvorba, distribuce, kina a shromažďování audiovizuál. archiválií | E89: 5221 | F89: Neinvestiční transfery fundacím, ústavům a obecně prospěšným společnostem | G89: 0331300001 | H89: Dotace-Castrum (film.a folk.festival) | I89: 58 | J89: 58 | K89: 58 | L89: 0 | M89: 100
A90: 33 | B90: Kultura, církve a sdělovací prostředky | C90: 3319 | D90: Ostatní záležitosti kultury | E90: 5151 | F90: Studená voda včetně stočného a úplaty za odvod deštových vod | G90: 0331900020 | H90: Spolk.dům.čp.59 | I90: 400 | J90: 400 | K90: 11.165 | L90: 388.835 | M90: 2.79125
A91: 33 | B91: Kultura, církve a sdělovací prostředky | C91: 3319 | D91: Ostatní záležitosti kultury | E91: 5153 | F91: Plyn | G91: 0331900020 | H91: Spolk.dům.čp.59 | I91: 500 | J91: 500 | K91: 431.09873 | L91: 68.90127 | M91: 86.219746
A92: 33 | B92: Kultura, církve a sdělovací prostředky | C92: 3319 | D92: Ostatní záležitosti kultury | E92: 5154 | F92: Elektrická energie | G92: 0331900020 | H92: Spolk.dům.čp.59 | I92: 1000 | J92: 1000 | K92: 34.54391 | L92: 965.45609 | M92: 3.454391
A93: 33 | B93: Kultura, církve a sdělovací prostředky | C93: 3319 | D93: Ostatní záležitosti kultury | E93: 5166 | F93: Konzultační, poradenské a právní služby | G93: 0331900024 | H93: Studie využití městského bloku "SPOLKOVÝ DŮM-HUSOVA" | I93: 1000 | J93: 1000 | K93: 85.818 | L93: 914.182 | M93: 8.5818
A94: 33 | B94: Kultura, církve a sdělovací prostředky | C94: 3319 | D94: Ostatní záležitosti kultury | E94: 5169 | F94: Nákup ostatních služeb | G94: 0331900012 | H94: Varhanní koncerty Concentus Moraviae-festival Varhanní Vysočina | I94: 50 | J94: 50 | K94: 0 | L94: 50 | M94: 0
A95: 33 | B95: Kultura, církve a sdělovací prostředky | C95: 3319 | D95: Ostatní záležitosti kultury | E95: 5169 | F95: Nákup ostatních služeb | G95: 0331900016 | H95: Administrace dotace PKC-Centrum Mikádo | I95: 10 | J95: 10 | K95: 0 | L95: 10 | M95: 0
A96: 33 | B96: Kultura, církve a sdělovací prostředky | C96: 3319 | D96: Ostatní záležitosti kultury | E96: 5169 | F96: Nákup ostatních služeb | G96: 0331900020 | H96: Spolk.dům.čp.59 | I96: 100 | J96: 100 | K96: 1.815 | L96: 98.185 | M96: 1.815
A97: 33 | B97: Kultura, církve a sdělovací prostředky | C97: 3319 | D97: Ostatní záležitosti kultury | E97: 5169 | F97: Nákup ostatních služeb | G97: 0331900021 | H97: TS-odměna správa-Spolk.dům.čp.59 | I97: 320 | J97: 320 | K97: 232.32 | L97: 87.68 | M97: 72.6
A98: 33 | B98: Kultura, církve a sdělovací prostředky | C98: 3319 | D98: Ostatní záležitosti kultury | E98: 5171 | F98: Opravy a udržování | G98: 0331900020 | H98: Spolk.dům.čp.59 | I98: 1000 | J98: 1000 | K98: 78.74367 | L98: 921.25633 | M98: 7.874367
A99: 33 | B99: Kultura, církve a sdělovací prostředky | C99: 3319 | D99: Ostatní záležitosti kultury | E99: 5222 | F99: Neinvestiční transfery spolkům | G99: 0331900025 | H99: Dar RM-ARCHITECTURA,z.s.-Landscape festival Humpolec 2023-č.usn.239/13/RM/2023 | I99: 0 | J99: 20 | K99: 20 | L99: 0 | M99: 100
A100: 33 | B100: Kultura, církve a sdělovací prostředky | C100: 3319 | D100: Ostatní záležitosti kultury | E100: 5331 | F100: Neinvestiční příspěvky zřízeným příspěvkovým organizacím | G100: 0000000376 | H100: MěKIS | I100: 17099 | J100: 17099 | K100: 11115.4 | L100: 5983.6 | M100: 65.00614071
A101: 33 | B101: Kultura, církve a sdělovací prostředky | C101: 3319 | D101: Ostatní záležitosti kultury | E101: 5336 | F101: Neinvestiční transfery zřízeným příspěvkovým organizacím | G101: 0331900026 | H101: Průtok-MěKIS neinv.dotace od MKČR-Příroda v knihovně | I101: 0 | J101: 15 | K101: 15 | L101: 0 | M101: 100
A102: 33 | B102: Kultura, církve a sdělovací prostředky | C102: 3319 | D102: Ostatní záležitosti kultury | E102: 5339 | F102: Neinvestiční transfery cizím příspěvkovým organizacím | G102: 0312100001 | H102: Dotace B3-Gymnázium Dr.A.Hrdličky (projekty školy,spolupráce se ZUŠ a ZŠ) | I102: 54 | J102: 0 | K102: 0 | L102: 0 | M102: 0
A103: 33 | B103: Kultura, církve a sdělovací prostředky | C103: 3319 | D103: Ostatní záležitosti kultury | E103: 5339 | F103: Neinvestiční transfery cizím příspěvkovým organizacím | G103: 0312200001 | H103: Dotace B2-Česká zem.akademie (akce školy) | I103: 17 | J103: 17 | K103: 17 | L103: 0 | M103: 100
A104: 33 | B104: Kultura, církve a sdělovací prostředky | C104: 3319 | D104: Ostatní záležitosti kultury | E104: 5493 | F104: Účelové neinvestiční transfery fyzickým osobám | G104: 0331900001 | H104: Dotace B2-Zabloudilová(pořádání sletu čarodějnic) | I104: 15 | J104: 15 | K104: 15 | L104: 0 | M104: 100
A105: 33 | B105: Kultura, církve a sdělovací prostředky | C105: 3319 | D105: Ostatní záležitosti kultury | E105: 5493 | F105: Účelové neinvestiční transfery fyzickým osobám | G105: 0331900022 | H105: Dotace B2-Háva Samuel(podpora amat.loutk.souboru Zlá sazenice) | I105: 15 | J105: 15 | K105: 15 | L105: 0 | M105: 100
A106: 33 | B106: Kultura, církve a sdělovací prostředky | C106: 3319 | D106: Ostatní záležitosti kultury | E106: 5493 | F106: Účelové neinvestiční transfery fyzickým osobám | G106: 0331900023 | H106: Dotace B3-Šarfová Blanka (vydání a tisk knihy beletrie s historickou tematikou) | I106: 10 | J106: 10 | K106: 10 | L106: 0 | M106: 100
A107: 33 | B107: Kultura, církve a sdělovací prostředky | C107: 3319 | D107: Ostatní záležitosti kultury | E107: 5901 | F107: Nespecifikované rezervy | G107: 0000000020 | H107: Rezerva na Dotace B "Zásad"-obl. kultury | I107: 118 | J107: 118 | K107: 0 | L107: 118 | M107: 0
A108: 33 | B108: Kultura, církve a sdělovací prostředky | C108: 3322 | D108: Zachování a obnova kulturních památek | E108: 5154 | F108: Elektrická energie | G108: 0332200010 | H108: Budova čp. 338 Zichpil | I108: 30 | J108: 30 | K108: 4.04607 | L108: 25.95393 | M108: 13.4869
A109: 33 | B109: Kultura, církve a sdělovací prostředky | C109: 3322 | D109: Zachování a obnova kulturních památek | E109: 5166 | F109: Konzultační, poradenské a právní služby | G109: 0332200001 | H109: Státní památková péče -posudky | I109: 20 | J109: 56 | K109: 47.19 | L109: 8.81 | M109: 84.26785714
A110: 33 | B110: Kultura, církve a sdělovací prostředky | C110: 3322 | D110: Zachování a obnova kulturních památek | E110: 5169 | F110: Nákup ostatních služeb | G110: 0332200002 | H110: Hrad Orlík-provozní výdaje | I110: 200 | J110: 200 | K110: 34.53 | L110: 165.47 | M110: 17.265
A111: 33 | B111: Kultura, církve a sdělovací prostředky | C111: 3322 | D111: Zachování a obnova kulturních památek | E111: 5169 | F111: Nákup ostatních služeb | G111: 0332200003 | H111: Budova čp. 253 Dol. náměstí -údržba, revize, opravy | I111: 30 | J111: 30 | K111: 0 | L111: 30 | M111: 0
A112: 33 | B112: Kultura, církve a sdělovací prostředky | C112: 3322 | D112: Zachování a obnova kulturních památek | E112: 5169 | F112: Nákup ostatních služeb | G112: 0332200010 | H112: Budova čp. 338 Zichpil | I112: 3 | J112: 13 | K112: 1.26 | L112: 11.74 | M112: 9.692307692
A113: 33 | B113: Kultura, církve a sdělovací prostředky | C113: 3322 | D113: Zachování a obnova kulturních památek | E113: 5171 | F113: Opravy a udržování | G113: 0332200002 | H113: Hrad Orlík-provozní výdaje | I113: 500 | J113: 364 | K113: 7.98629 | L113: 356.01371 | M113: 2.194035714
A114: 33 | B114: Kultura, církve a sdělovací prostředky | C114: 3322 | D114: Zachování a obnova kulturních památek | E114: 5171 | F114: Opravy a udržování | G114: 0332200003 | H114: Budova čp. 253 Dol. náměstí -údržba, revize, opravy | I114: 100 | J114: 65 | K114: 8.439 | L114: 56.561 | M114: 12.98307692
A115: 33 | B115: Kultura, církve a sdělovací prostředky | C115: 3322 | D115: Zachování a obnova kulturních památek | E115: 5171 | F115: Opravy a udržování | G115: 0332200006 | H115: St.pam.péče - opr.neudržitelných památek | I115: 10 | J115: 0 | K115: 0 | L115: 0 | M115: 0
A116: 33 | B116: Kultura, církve a sdělovací prostředky | C116: 3322 | D116: Zachování a obnova kulturních památek | E116: 5171 | F116: Opravy a udržování | G116: 0332200009 | H116: Budova čp. 250 Dolní náměstí | I116: 30 | J116: 30 | K116: 0 | L116: 30 | M116: 0
A117: 33 | B117: Kultura, církve a sdělovací prostředky | C117: 3322 | D117: Zachování a obnova kulturních památek | E117: 5171 | F117: Opravy a udržování | G117: 0332200010 | H117: Budova čp. 338 Zichpil | I117: 170 | J117: 25 | K117: 0 | L117: 25 | M117: 0
A118: 33 | B118: Kultura, církve a sdělovací prostředky | C118: 3322 | D118: Zachování a obnova kulturních památek | E118: 5171 | F118: Opravy a udržování | G118: 0332200032 | H118: OÚE-Humpolec č.p.338-opravy a udržovací práce (Zichpil) | I118: 0 | J118: 270 | K118: 264.41404 | L118: 5.58596 | M118: 97.93112593
A119: 33 | B119: Kultura, církve a sdělovací prostředky | C119: 3326 | D119: Pořízení, zachování a obnova hodnot místního kulturního, národního a historického povědomí | E119: 5154 | F119: Elektrická energie | G119: 0332600004 | H119: Toleranční kostel | I119: 8 | J119: 8 | K119: 1.74538 | L119: 6.25462 | M119: 21.81725
A120: 33 | B120: Kultura, církve a sdělovací prostředky | C120: 3326 | D120: Pořízení, zachování a obnova hodnot místního kulturního, národního a historického povědomí | E120: 5169 | F120: Nákup ostatních služeb | G120: 0332600001 | H120: Kapličky - revize | I120: 25 | J120: 25 | K120: 0 | L120: 25 | M120: 0
A121: 33 | B121: Kultura, církve a sdělovací prostředky | C121: 3326 | D121: Pořízení, zachování a obnova hodnot místního kulturního, národního a historického povědomí | E121: 5171 | F121: Opravy a udržování | G121: 0332600002 | H121: Boží muka, křížky - opravy | I121: 10 | J121: 10 | K121: 3.044 | L121: 6.956 | M121: 30.44
A122: 33 | B122: Kultura, církve a sdělovací prostředky | C122: 3326 | D122: Pořízení, zachování a obnova hodnot místního kulturního, národního a historického povědomí | E122: 5171 | F122: Opravy a udržování | G122: 0332600003 | H122: Kapličky - opravy | I122: 160 | J122: 160 | K122: 40.06 | L122: 119.94 | M122: 25.0375
A123: 33 | B123: Kultura, církve a sdělovací prostředky | C123: 3326 | D123: Pořízení, zachování a obnova hodnot místního kulturního, národního a historického povědomí | E123: 5171 | F123: Opravy a udržování | G123: 0332600005 | H123: Zvonička Hněvkovice-oprava | I123: 5 | J123: 15 | K123: 0 | L123: 15 | M123: 0
A124: 33 | B124: Kultura, církve a sdělovací prostředky | C124: 3326 | D124: Pořízení, zachování a obnova hodnot místního kulturního, národního a historického povědomí | E124: 5901 | F124: Nespecifikované rezervy | G124: 0332600022 | H124: rezerva-Dotace na opravu fasád hist.objektů | I124: 1000 | J124: 1000 | K124: 0 | L124: 1000 | M124: 0
A125: 33 | B125: Kultura, církve a sdělovací prostředky | C125: 3330 | D125: Činnosti registrovaných církví a náboženských společností | E125: 5223 | F125: Neinvestiční transfery církvím a náboženským společnostem | G125: 0333000003 | H125: Dotace-Čes.církev evangel. (oprava v areálu evang.kostela) | I125: 275 | J125: 275 | K125: 275 | L125: 0 | M125: 100
A126: 33 | B126: Kultura, církve a sdělovací prostředky | C126: 3330 | D126: Činnosti registrovaných církví a náboženských společností | E126: 5223 | F126: Neinvestiční transfery církvím a náboženským společnostem | G126: 0333000004 | H126: Dotace-Římskokat. církev (výchova mládeže) | I126: 12 | J126: 12 | K126: 12 | L126: 0 | M126: 100
A127: 33 | B127: Kultura, církve a sdělovací prostředky | C127: 3330 | D127: Činnosti registrovaných církví a náboženských společností | E127: 5223 | F127: Neinvestiční transfery církvím a náboženským společnostem | G127: 0333000005 | H127: Dotace D2-Římskokat. církev (restaur. kostela Sv.Mikuláše) | I127: 225 | J127: 225 | K127: 225 | L127: 0 | M127: 100
A128: 33 | B128: Kultura, církve a sdělovací prostředky | C128: 3392 | D128: Zájmová činnost v kultuře | E128: 5222 | F128: Neinvestiční transfery spolkům | G128: 0339200001 | H128: Dotace-Divadlo za Komínem-představení pro děti | I128: 50 | J128: 50 | K128: 50 | L128: 0 | M128: 100
A129: 33 | B129: Kultura, církve a sdělovací prostředky | C129: 3399 | D129: Ostatní záležitosti kultury, církví a sdělovacích prostředků | E129: 5139 | F129: Nákup materiálu jinde nezařazený | G129: 0339900001 | H129: KPOZ-materiál | I129: 70 | J129: 70 | K129: 0.295 | L129: 69.705 | M129: 0.4214285714
A130: 33 | B130: Kultura, církve a sdělovací prostředky | C130: 3399 | D130: Ostatní záležitosti kultury, církví a sdělovacích prostředků | E130: 5169 | F130: Nákup ostatních služeb | G130: 0339900002 | H130: KPOZ-služby | I130: 30 | J130: 30 | K130: 10.218 | L130: 19.782 | M130: 34.06
A131: 33 | B131: Kultura, církve a sdělovací prostředky | C131: 3399 | D131: Ostatní záležitosti kultury, církví a sdělovacích prostředků | E131: 5194 | F131: Výdaje na věcné dary | G131: 0339900003 | H131: KPOZ-věcné dary | I131: 700 | J131: 700 | K131: 55.0911 | L131: 644.9089 | M131: 7.870157143
A132: 33 | B132: Kultura, církve a sdělovací prostředky | C132: 3399 | D132: Ostatní záležitosti kultury, církví a sdělovacích prostředků | E132: 5213 | F132: Neinvestiční transfery nefinančním podnikatelům-právnickým osobám | G132: 0339900011 | H132: Dotace B2-MŠ a ZŠ Bambi-kult.akce | I132: 10 | J132: 10 | K132: 10 | L132: 0 | M132: 100
A133: 33 | B133: Kultura, církve a sdělovací prostředky | C133: 3399 | D133: Ostatní záležitosti kultury, církví a sdělovacích prostředků | E133: 5222 | F133: Neinvestiční transfery spolkům | G133: 0339900008 | H133: Dotace B3-Společnost pro rozvoj Humpolecka-Den MAS | I133: 5 | J133: 5 | K133: 5 | L133: 0 | M133: 100
A134: 33 | B134: Kultura, církve a sdělovací prostředky | C134: 3399 | D134: Ostatní záležitosti kultury, církví a sdělovacích prostředků | E134: 5222 | F134: Neinvestiční transfery spolkům | G134: 0339900010 | H134: Dotace B2-Svařený sáně (kult.program advent) | I134: 30 | J134: 30 | K134: 30 | L134: 0 | M134: 100
A135: 33 | B135: Kultura, církve a sdělovací prostředky | C135: 3399 | D135: Ostatní záležitosti kultury, církví a sdělovacích prostředků | E135: 5222 | F135: Neinvestiční transfery spolkům | G135: 0437900005 | H135: Dotace C1-Svaz tělesně postižených Humpolec (činnost) | I135: 11 | J135: 11 | K135: 11 | L135: 0 | M135: 100
A136: ODPA(2) 33 Kultura, církve a sdělovací prostředky | I136: 25585 | J136: 25566 | K136: 13337.24 | L136: 12228.79 | M136: 52.17
A137: 34 | B137: Sport a zájmová činnost | C137: 3412 | D137: Sportovní zařízení ve vlastnictví obce | E137: 5137 | F137: Drobný dlouhodobý hmotný majetek | G137: 0341200109 | H137: Zdrav.vybav.1.pomoc-ZS a Žabák | I137: 50 | J137: 50 | K137: 0 | L137: 50 | M137: 0
A138: 34 | B138: Sport a zájmová činnost | C138: 3412 | D138: Sportovní zařízení ve vlastnictví obce | E138: 5137 | F138: Drobný dlouhodobý hmotný majetek | G138: 0341200121 | H138: Vybavení sportovišť-místní části | I138: 100 | J138: 160 | K138: 73.69 | L138: 86.31 | M138: 46.05625
A139: 34 | B139: Sport a zájmová činnost | C139: 3412 | D139: Sportovní zařízení ve vlastnictví obce | E139: 5137 | F139: Drobný dlouhodobý hmotný majetek | G139: 0341200122 | H139: Vybavení sportovišť-město | I139: 40 | J139: 40 | K139: 0 | L139: 40 | M139: 0
A140: 34 | B140: Sport a zájmová činnost | C140: 3412 | D140: Sportovní zařízení ve vlastnictví obce | E140: 5139 | F140: Nákup materiálu jinde nezařazený | G140: 0341200118 | H140: Městská hřiště | I140: 10 | J140: 10 | K140: 0 | L140: 10 | M140: 0
A141: 34 | B141: Sport a zájmová činnost | C141: 3412 | D141: Sportovní zařízení ve vlastnictví obce | E141: 5169 | F141: Nákup ostatních služeb | G141: 0341200029 | H141: Sportoviště - revize, kontroly, služby ostatní | I141: 500 | J141: 500 | K141: 287.69785 | L141: 212.30215 | M141: 57.53957
A142: 34 | B142: Sport a zájmová činnost | C142: 3412 | D142: Sportovní zařízení ve vlastnictví obce | E142: 5169 | F142: Nákup ostatních služeb | G142: 0341200088 | H142: Revize motorů atrakcí | I142: 100 | J142: 100 | K142: 0 | L142: 100 | M142: 0
A143: 34 | B143: Sport a zájmová činnost | C143: 3412 | D143: Sportovní zařízení ve vlastnictví obce | E143: 5169 | F143: Nákup ostatních služeb | G143: 0341200089 | H143: Zimní stadion-administrace | I143: 15 | J143: 15 | K143: 2.42 | L143: 12.58 | M143: 16.13333333
A144: 34 | B144: Sport a zájmová činnost | C144: 3412 | D144: Sportovní zařízení ve vlastnictví obce | E144: 5169 | F144: Nákup ostatních služeb | G144: 0341200119 | H144: TS-sportoviště-provoz-příkazní smlouva | I144: 8000 | J144: 8000 | K144: 4822.392 | L144: 3177.608 | M144: 60.2799
A145: 34 | B145: Sport a zájmová činnost | C145: 3412 | D145: Sportovní zařízení ve vlastnictví obce | E145: 5171 | F145: Opravy a udržování | G145: 0341200001 | H145: Údržba městských hřišť | I145: 1000 | J145: 1000 | K145: 729.9245 | L145: 270.0755 | M145: 72.99245
A146: 34 | B146: Sport a zájmová činnost | C146: 3412 | D146: Sportovní zařízení ve vlastnictví obce | E146: 5171 | F146: Opravy a udržování | G146: 0341200002 | H146: Údržba hřišť v místních částech | I146: 700 | J146: 640 | K146: 97.497 | L146: 542.503 | M146: 15.23390625
A147: 34 | B147: Sport a zájmová činnost | C147: 3412 | D147: Sportovní zařízení ve vlastnictví obce | E147: 5171 | F147: Opravy a udržování | G147: 0341200003 | H147: Sportovní areál Okružní - opravy | I147: 1300 | J147: 1300 | K147: 534.07408 | L147: 765.92592 | M147: 41.08262154
A148: 34 | B148: Sport a zájmová činnost | C148: 3412 | D148: Sportovní zařízení ve vlastnictví obce | E148: 5171 | F148: Opravy a udržování | G148: 0341200050 | H148: Fotbalové hřiště - údržba přírodní trávy | I148: 450 | J148: 450 | K148: 140.7593 | L148: 309.2407 | M148: 31.27984444
A149: 34 | B149: Sport a zájmová činnost | C149: 3412 | D149: Sportovní zařízení ve vlastnictví obce | E149: 5171 | F149: Opravy a udržování | G149: 0341200063 | H149: Tenisová hala Hálkova - údržba | I149: 20 | J149: 20 | K149: 0 | L149: 20 | M149: 0
A150: 34 | B150: Sport a zájmová činnost | C150: 3412 | D150: Sportovní zařízení ve vlastnictví obce | E150: 5171 | F150: Opravy a udržování | G150: 0341200067 | H150: Tenisová hala Hradská - údržba | I150: 20 | J150: 20 | K150: 0 | L150: 20 | M150: 0
A151: 34 | B151: Sport a zájmová činnost | C151: 3412 | D151: Sportovní zařízení ve vlastnictví obce | E151: 5171 | F151: Opravy a udržování | G151: 0341200123 | H151: Tenisová hala Hálkova-výmalba | I151: 150 | J151: 150 | K151: 105.96 | L151: 44.04 | M151: 70.64
A152: 34 | B152: Sport a zájmová činnost | C152: 3412 | D152: Sportovní zařízení ve vlastnictví obce | E152: 5171 | F152: Opravy a udržování | G152: 0341200124 | H152: ZS generální oprava rolby | I152: 300 | J152: 301.25 | K152: 0 | L152: 301.25 | M152: 0
A153: 34 | B153: Sport a zájmová činnost | C153: 3412 | D153: Sportovní zařízení ve vlastnictví obce | E153: 5171 | F153: Opravy a udržování | G153: 0341200125 | H153: ZS výmalba šaten(bočních)+chodba | I153: 150 | J153: 148.75 | K153: 20 | L153: 128.75 | M153: 13.44537815
A154: 34 | B154: Sport a zájmová činnost | C154: 3419 | D154: Ostatní sportovní činnost | E154: 5139 | F154: Nákup materiálu jinde nezařazený | G154: 0341900026 | H154: Sportovní akce města a jejich podpora (např. Kemp vítězů) | I154: 5 | J154: 5 | K154: 0 | L154: 5 | M154: 0
A155: 34 | B155: Sport a zájmová činnost | C155: 3419 | D155: Ostatní sportovní činnost | E155: 5169 | F155: Nákup ostatních služeb | G155: 0341900026 | H155: Sportovní akce města a jejich podpora (např. Kemp vítězů) | I155: 40 | J155: 40 | K155: 10.677 | L155: 29.323 | M155: 26.6925
A156: 34 | B156: Sport a zájmová činnost | C156: 3419 | D156: Ostatní sportovní činnost | E156: 5175 | F156: Pohoštění | G156: 0341900026 | H156: Sportovní akce města a jejich podpora (např. Kemp vítězů) | I156: 5 | J156: 5 | K156: 0 | L156: 5 | M156: 0
A157: 34 | B157: Sport a zájmová činnost | C157: 3419 | D157: Ostatní sportovní činnost | E157: 5221 | F157: Neinvestiční transfery fundacím, ústavům a obecně prospěšným společnostem | G157: 0341900008 | H157: Dotace-Soutěže podkovy (Zlatá podkova) | I157: 175 | J157: 175 | K157: 175 | L157: 0 | M157: 100
A158: 34 | B158: Sport a zájmová činnost | C158: 3419 | D158: Ostatní sportovní činnost | E158: 5222 | F158: Neinvestiční transfery spolkům | G158: 0341900002 | H158: Dotace-TJ Jiskra (činnost) | I158: 4887 | J158: 4887 | K158: 4887 | L158: 0 | M158: 100
A159: 34 | B159: Sport a zájmová činnost | C159: 3419 | D159: Ostatní sportovní činnost | E159: 5222 | F159: Neinvestiční transfery spolkům | G159: 0341900003 | H159: Dotace-TJ Jiskra (trenéři mládeže) | I159: 707 | J159: 707 | K159: 707 | L159: 0 | M159: 100
A160: 34 | B160: Sport a zájmová činnost | C160: 3419 | D160: Ostatní sportovní činnost | E160: 5222 | F160: Neinvestiční transfery spolkům | G160: 0341900004 | H160: Dotace-LTC (činnost,nájemné) | I160: 1345 | J160: 1345 | K160: 1345 | L160: 0 | M160: 100
A161: 34 | B161: Sport a zájmová činnost | C161: 3419 | D161: Ostatní sportovní činnost | E161: 5222 | F161: Neinvestiční transfery spolkům | G161: 0341900005 | H161: Dotace-LTC (trenéři mládeže) | I161: 80 | J161: 80 | K161: 80 | L161: 0 | M161: 100
A162: 34 | B162: Sport a zájmová činnost | C162: 3419 | D162: Ostatní sportovní činnost | E162: 5222 | F162: Neinvestiční transfery spolkům | G162: 0341900013 | H162: Dotace-Spolek přátel Krasoňova (pořádání akcí) | I162: 16 | J162: 16 | K162: 16 | L162: 0 | M162: 100
A163: 34 | B163: Sport a zájmová činnost | C163: 3419 | D163: Ostatní sportovní činnost | E163: 5222 | F163: Neinvestiční transfery spolkům | G163: 0341900014 | H163: Dotace-TJ Krasoňov (sportovní a kulturní akce) | I163: 16 | J163: 16 | K163: 16 | L163: 0 | M163: 100
A164: 34 | B164: Sport a zájmová činnost | C164: 3419 | D164: Ostatní sportovní činnost | E164: 5222 | F164: Neinvestiční transfery spolkům | G164: 0341900016 | H164: Dotace-C1- Vysočina Petrovice z.s.(sportovní a kulturní akce) | I164: 57 | J164: 57 | K164: 57 | L164: 0 | M164: 100
A165: 34 | B165: Sport a zájmová činnost | C165: 3419 | D165: Ostatní sportovní činnost | E165: 5222 | F165: Neinvestiční transfery spolkům | G165: 0341900017 | H165: Dotace-TJ Plačkov (provozní náklady, provoz hřiště) | I165: 60 | J165: 60 | K165: 60 | L165: 0 | M165: 100
A166: 34 | B166: Sport a zájmová činnost | C166: 3419 | D166: Ostatní sportovní činnost | E166: 5222 | F166: Neinvestiční transfery spolkům | G166: 0341900018 | H166: Dotace-Automotoklub (závody) | I166: 440 | J166: 440 | K166: 413.123 | L166: 26.877 | M166: 93.89159091
A167: 34 | B167: Sport a zájmová činnost | C167: 3419 | D167: Ostatní sportovní činnost | E167: 5222 | F167: Neinvestiční transfery spolkům | G167: 0341900019 | H167: Dotace-Jezdecký klub(závody) | I167: 26 | J167: 26 | K167: 26 | L167: 0 | M167: 100
A168: 34 | B168: Sport a zájmová činnost | C168: 3419 | D168: Ostatní sportovní činnost | E168: 5222 | F168: Neinvestiční transfery spolkům | G168: 0341900021 | H168: Dotace-Jezdecký klub(trenéři) | I168: 20 | J168: 20 | K168: 20 | L168: 0 | M168: 100
A169: 34 | B169: Sport a zájmová činnost | C169: 3419 | D169: Ostatní sportovní činnost | E169: 5222 | F169: Neinvestiční transfery spolkům | G169: 0551200004 | H169: Dotace-SDH Hněvkovice (trenéři mládeže) | I169: 30 | J169: 30 | K169: 30 | L169: 0 | M169: 100
A170: 34 | B170: Sport a zájmová činnost | C170: 3419 | D170: Ostatní sportovní činnost | E170: 5909 | F170: Ostatní neinvestiční výdaje jinde nezařazené | G170: 0341900030 | H170: Sportoviště - místní části | I170: 20 | J170: 20 | K170: 0 | L170: 20 | M170: 0
A171: 34 | B171: Sport a zájmová činnost | C171: 3421 | D171: Využití volného času dětí a mládeže | E171: 5137 | F171: Drobný dlouhodobý hmotný majetek | G171: 0342100002 | H171: Dopravní hřiště | I171: 30 | J171: 30 | K171: 0 | L171: 30 | M171: 0
A172: 34 | B172: Sport a zájmová činnost | C172: 3421 | D172: Využití volného času dětí a mládeže | E172: 5139 | F172: Nákup materiálu jinde nezařazený | G172: 0342100002 | H172: Dopravní hřiště | I172: 12 | J172: 6.5 | K172: 3.82384 | L172: 2.67616 | M172: 58.82830769
A173: 34 | B173: Sport a zájmová činnost | C173: 3421 | D173: Využití volného času dětí a mládeže | E173: 5169 | F173: Nákup ostatních služeb | G173: 0342100002 | H173: Dopravní hřiště | I173: 5 | J173: 5 | K173: 0 | L173: 5 | M173: 0
A174: 34 | B174: Sport a zájmová činnost | C174: 3421 | D174: Využití volného času dětí a mládeže | E174: 5171 | F174: Opravy a udržování | G174: 0342100001 | H174: Dopravní hřiště - opravy kol | I174: 15 | J174: 15 | K174: 10.923 | L174: 4.077 | M174: 72.82
A175: 34 | B175: Sport a zájmová činnost | C175: 3421 | D175: Využití volného času dětí a mládeže | E175: 5175 | F175: Pohoštění | G175: 0342100002 | H175: Dopravní hřiště | I175: 8 | J175: 8 | K175: 2.54 | L175: 5.46 | M175: 31.75
A176: 34 | B176: Sport a zájmová činnost | C176: 3421 | D176: Využití volného času dětí a mládeže | E176: 5222 | F176: Neinvestiční transfery spolkům | G176: 0342100003 | H176: Dotace-A1-AFC (činnost) | I176: 2340 | J176: 2340 | K176: 2340 | L176: 0 | M176: 100
A177: 34 | B177: Sport a zájmová činnost | C177: 3421 | D177: Využití volného času dětí a mládeže | E177: 5222 | F177: Neinvestiční transfery spolkům | G177: 0342100004 | H177: Dotace-A1-AFC (trenéři mládeže) | I177: 220 | J177: 220 | K177: 220 | L177: 0 | M177: 100
A178: 34 | B178: Sport a zájmová činnost | C178: 3421 | D178: Využití volného času dětí a mládeže | E178: 5222 | F178: Neinvestiční transfery spolkům | G178: 0342100005 | H178: Dotace-C1-KČT Šlápoty Hněvkovice (činnost) | I178: 82 | J178: 82 | K178: 82 | L178: 0 | M178: 100
A179: 34 | B179: Sport a zájmová činnost | C179: 3421 | D179: Využití volného času dětí a mládeže | E179: 5222 | F179: Neinvestiční transfery spolkům | G179: 0342100007 | H179: Dotace C1-Junák (pořízení IT vybavení) | I179: 63 | J179: 63 | K179: 63 | L179: 0 | M179: 100
A180: 34 | B180: Sport a zájmová činnost | C180: 3421 | D180: Využití volného času dětí a mládeže | E180: 5494 | F180: Neinvestiční transfery fyzickým osobám nemající povahu daru | G180: 0342100002 | H180: Dopravní hřiště | I180: 0 | J180: 5.5 | K180: 5.18398 | L180: 0.31602 | M180: 94.25418182
A181: 34 | B181: Sport a zájmová činnost | C181: 3429 | D181: Ostatní zájmová činnost a rekreace | E181: 5169 | F181: Nákup ostatních služeb | G181: 0342900026 | H181: Humpolecké vánoční kluziště | I181: 600 | J181: 600 | K181: 92.399 | L181: 507.601 | M181: 15.39983333
A182: 34 | B182: Sport a zájmová činnost | C182: 3429 | D182: Ostatní zájmová činnost a rekreace | E182: 5222 | F182: Neinvestiční transfery spolkům | G182: 0234900001 | H182: Dotace-Český ryb.svaz (trenéři mládeže) | I182: 10 | J182: 10 | K182: 10 | L182: 0 | M182: 100
A183: 34 | B183: Sport a zájmová činnost | C183: 3429 | D183: Ostatní zájmová činnost a rekreace | E183: 5222 | F183: Neinvestiční transfery spolkům | G183: 0234900002 | H183: Dotace-Český ryb.svaz (činnost) | I183: 50 | J183: 50 | K183: 50 | L183: 0 | M183: 100
A184: 34 | B184: Sport a zájmová činnost | C184: 3429 | D184: Ostatní zájmová činnost a rekreace | E184: 5222 | F184: Neinvestiční transfery spolkům | G184: 0342900002 | H184: Dotace-Klub Veteráni(přehlídka historických vozidel) | I184: 9 | J184: 9 | K184: 9 | L184: 0 | M184: 100
A185: 34 | B185: Sport a zájmová činnost | C185: 3429 | D185: Ostatní zájmová činnost a rekreace | E185: 5222 | F185: Neinvestiční transfery spolkům | G185: 0342900003 | H185: Dotace C1-Turisté Humpolec (činnost) | I185: 22 | J185: 22 | K185: 22 | L185: 0 | M185: 100
A186: 34 | B186: Sport a zájmová činnost | C186: 3429 | D186: Ostatní zájmová činnost a rekreace | E186: 5222 | F186: Neinvestiční transfery spolkům | G186: 0342900004 | H186: Dotace-Klub českých turistů (činnost) | I186: 66 | J186: 66 | K186: 66 | L186: 0 | M186: 100
A187: 34 | B187: Sport a zájmová činnost | C187: 3429 | D187: Ostatní zájmová činnost a rekreace | E187: 5222 | F187: Neinvestiční transfery spolkům | G187: 0342900005 | H187: Dotace C1-Senioři ČR Humpolec (volnočasové aktivity,kultura) | I187: 58 | J187: 58 | K187: 58 | L187: 0 | M187: 100
A188: 34 | B188: Sport a zájmová činnost | C188: 3429 | D188: Ostatní zájmová činnost a rekreace | E188: 5222 | F188: Neinvestiční transfery spolkům | G188: 0342900006 | H188: Dotace-Svaz chovatelů (výstava drobného zvířectva) | I188: 10 | J188: 10 | K188: 10 | L188: 0 | M188: 100
A189: 34 | B189: Sport a zájmová činnost | C189: 3429 | D189: Ostatní zájmová činnost a rekreace | E189: 5222 | F189: Neinvestiční transfery spolkům | G189: 0342900008 | H189: Dotace C1-Český svaz včelařů (údržba a opravy skanzenu,výroba přístřešků pro venk.exponáty) | I189: 51 | J189: 51 | K189: 51 | L189: 0 | M189: 100
A190: 34 | B190: Sport a zájmová činnost | C190: 3429 | D190: Ostatní zájmová činnost a rekreace | E190: 5222 | F190: Neinvestiční transfery spolkům | G190: 0342900010 | H190: Dotace C1-Myslivecký spolek Vysočina Petrovice (obnova zeleně, nájem) | I190: 23 | J190: 23 | K190: 23 | L190: 0 | M190: 100
A191: 34 | B191: Sport a zájmová činnost | C191: 3429 | D191: Ostatní zájmová činnost a rekreace | E191: 5222 | F191: Neinvestiční transfery spolkům | G191: 0342900014 | H191: Dotace A3-Basketbal.klub 3x3 Humpolec (provoz) | I191: 40 | J191: 40 | K191: 40 | L191: 0 | M191: 100
A192: 34 | B192: Sport a zájmová činnost | C192: 3429 | D192: Ostatní zájmová činnost a rekreace | E192: 5493 | F192: Účelové neinvestiční transfery fyzickým osobám | G192: 0331900003 | H192: Dotace-Krejčí (celoroční akce v Plačkově) | I192: 30 | J192: 30 | K192: 30 | L192: 0 | M192: 100
A193: 34 | B193: Sport a zájmová činnost | C193: 3429 | D193: Ostatní zájmová činnost a rekreace | E193: 5493 | F193: Účelové neinvestiční transfery fyzickým osobám | G193: 0331900005 | H193: Dotace-Vyvadilová (celoroční akce Rozkoš) | I193: 40 | J193: 40 | K193: 40 | L193: 0 | M193: 100
A194: 34 | B194: Sport a zájmová činnost | C194: 3429 | D194: Ostatní zájmová činnost a rekreace | E194: 5493 | F194: Účelové neinvestiční transfery fyzickým osobám | G194: 0342900001 | H194: Dotace A2-Marek David (triatlon) | I194: 14 | J194: 14 | K194: 14 | L194: 0 | M194: 100
A195: 34 | B195: Sport a zájmová činnost | C195: 3429 | D195: Ostatní zájmová činnost a rekreace | E195: 5493 | F195: Účelové neinvestiční transfery fyzickým osobám | G195: 0342900012 | H195: Dotace A2-Jirák Lukáš (sportovní akce-běh) | I195: 12 | J195: 12 | K195: 12 | L195: 0 | M195: 100
A196: 34 | B196: Sport a zájmová činnost | C196: 3429 | D196: Ostatní zájmová činnost a rekreace | E196: 5493 | F196: Účelové neinvestiční transfery fyzickým osobám | G196: 0342900013 | H196: Dotace-Prokůpek Vít (zavody horských kol) | I196: 6 | J196: 6 | K196: 6 | L196: 0 | M196: 100
A197: 34 | B197: Sport a zájmová činnost | C197: 3429 | D197: Ostatní zájmová činnost a rekreace | E197: 5493 | F197: Účelové neinvestiční transfery fyzickým osobám | G197: 0342900015 | H197: Dotace-Macháček Jan (cyklistický závod) | I197: 9 | J197: 9 | K197: 9 | L197: 0 | M197: 100
A198: 34 | B198: Sport a zájmová činnost | C198: 3429 | D198: Ostatní zájmová činnost a rekreace | E198: 5493 | F198: Účelové neinvestiční transfery fyzickým osobám | G198: 0342900016 | H198: Dotace A3-Havlová Anna (jezdecké soutěže-mezin.) | I198: 15 | J198: 15 | K198: 15 | L198: 0 | M198: 100
A199: 34 | B199: Sport a zájmová činnost | C199: 3429 | D199: Ostatní zájmová činnost a rekreace | E199: 5493 | F199: Účelové neinvestiční transfery fyzickým osobám | G199: 0342900020 | H199: Dotace C2 Polidarová Petra (uspořádání herního odpoledne) | I199: 3 | J199: 3 | K199: 3 | L199: 0 | M199: 100
A200: 34 | B200: Sport a zájmová činnost | C200: 3429 | D200: Ostatní zájmová činnost a rekreace | E200: 5493 | F200: Účelové neinvestiční transfery fyzickým osobám | G200: 0342900025 | H200: Dotace A3-Sukdolák Matěj (mezin.jezd.soutěže,ME,OH) | I200: 64 | J200: 64 | K200: 64 | L200: 0 | M200: 100
A201: 34 | B201: Sport a zájmová činnost | C201: 3429 | D201: Ostatní zájmová činnost a rekreace | E201: 5493 | F201: Účelové neinvestiční transfery fyzickým osobám | G201: 0342900027 | H201: Dotace C2-Horčic Miloš (turnaj v nohejbale) | I201: 3 | J201: 3 | K201: 3 | L201: 0 | M201: 100
... 379 more rows

Sheet KV 082023
A1: 00248266 Město Humpolec
A2: Horní náměstí 300 Humpolec
A3: Plnění rozpisu rozpočtu kapitálových výdajů k 31.07.2023 v tisících Kč
A5: ODPA(2) | B5: Popis | C5: ODPA(4) | D5: Popis | E5: POL(4) | F5: Popis | G5: ORG | H5: Popis | I5: 2023
I6: Schválený rozp. | J6: Upravený rozp. | K6: Skutečnost k 31. 08. | L6: Plnění v Kč k UR | M6: Plnění v % k UR
A7: 10 | B7: Zemědělství, lesní hospodářství a rybářství | C7: 1036 | D7: Správa v lesním hospodářství | E7: 6119 | F7: Ostatní nákup dlouhodobého nehmotného majetku | G7: 0103600003 | H7: Projekt-Lesní hosp.plán město Humpolec | I7: 260 | J7: 260 | K7: 129.9782 | L7: 130.0218 | M7: 49.99161538
A8: 10 | B8: Zemědělství, lesní hospodářství a rybářství | C8: 1036 | D8: Správa v lesním hospodářství | E8: 6119 | F8: Ostatní nákup dlouhodobého nehmotného majetku | G8: 0103600004 | H8: Projekt-Lesní hosp.osnovy Humpolecko | I8: 740 | J8: 740 | K8: 366.025 | L8: 373.975 | M8: 49.46283784
A9: ODPA(2) 10 Zemědělství, lesní hospodářství a rybářství | I9: 1000 | J9: 1000 | K9: 496.01 | L9: 504 | M9: 49.6
A10: 22 | B10: Doprava | C10: 2212 | D10: Silnice | E10: 6121 | F10: Stavby | G10: 0221200007 | H10: Projekty komunikací | I10: 1000 | J10: 1000 | K10: 17.85 | L10: 982.15 | M10: 1.785
A11: 22 | B11: Doprava | C11: 2212 | D11: Silnice | E11: 6121 | F11: Stavby | G11: 0221200122 | H11: MK Pelhřimovská (PD) | I11: 500 | J11: 500 | K11: 55.66 | L11: 444.34 | M11: 11.132
A12: 22 | B12: Doprava | C12: 2212 | D12: Silnice | E12: 6121 | F12: Stavby | G12: 0221200125 | H12: MK Mánesova (PD) | I12: 400 | J12: 400 | K12: 0 | L12: 400 | M12: 0
A13: 22 | B13: Doprava | C13: 2212 | D13: Silnice | E13: 6121 | F13: Stavby | G13: 0221200130 | H13: MK 5.května (PD) | I13: 150 | J13: 150 | K13: 0 | L13: 150 | M13: 0
A14: 22 | B14: Doprava | C14: 2212 | D14: Silnice | E14: 6121 | F14: Stavby | G14: 0221200131 | H14: MK Hradská (PD) | I14: 150 | J14: 150 | K14: 0 | L14: 150 | M14: 0
A15: 22 | B15: Doprava | C15: 2212 | D15: Silnice | E15: 6121 | F15: Stavby | G15: 0221200132 | H15: Příprava rekonstr.mostu Kletečná (PD) | I15: 150 | J15: 150 | K15: 0 | L15: 150 | M15: 0
A16: 22 | B16: Doprava | C16: 2212 | D16: Silnice | E16: 6121 | F16: Stavby | G16: 0221200159 | H16: MK Vosmíkova (PD) | I16: 150 | J16: 150 | K16: 0 | L16: 150 | M16: 0
A17: 22 | B17: Doprava | C17: 2212 | D17: Silnice | E17: 6121 | F17: Stavby | G17: 0221200160 | H17: Zábradlí na mostku Kletečná (745/1 v k.ú.Kletečná u Humpolce-účelová komunikace 1e) | I17: 0 | J17: 120 | K17: 0 | L17: 120 | M17: 0
A18: 22 | B18: Doprava | C18: 2219 | D18: Ostatní záležitosti pozemních komunikací | E18: 6121 | F18: Stavby | G18: 0221900001 | H18: Studie a projekty chodníků | I18: 500 | J18: 530 | K18: 20.57 | L18: 509.43 | M18: 3.881132075
A19: 22 | B19: Doprava | C19: 2219 | D19: Ostatní záležitosti pozemních komunikací | E19: 6121 | F19: Stavby | G19: 0221900021 | H19: Chodník(lávka)ul. Lužická-podél komunikace III/34771 | I19: 10000 | J19: 10000 | K19: 4800.26311 | L19: 5199.73689 | M19: 48.0026311
A20: 22 | B20: Doprava | C20: 2219 | D20: Ostatní záležitosti pozemních komunikací | E20: 6121 | F20: Stavby | G20: 0221900076 | H20: MK Hálkova (PD) | I20: 200 | J20: 235 | K20: 0 | L20: 235 | M20: 0
A21: 22 | B21: Doprava | C21: 2219 | D21: Ostatní záležitosti pozemních komunikací | E21: 6121 | F21: Stavby | G21: 0221900078 | H21: Chodník Světlice část A | I21: 2800 | J21: 2800 | K21: 1012.43581 | L21: 1787.56419 | M21: 36.15842179
A22: 22 | B22: Doprava | C22: 2219 | D22: Ostatní záležitosti pozemních komunikací | E22: 6121 | F22: Stavby | G22: 0221900081 | H22: Vnitroblok Hálkova x Lnářská (studie) | I22: 250 | J22: 250 | K22: 0 | L22: 250 | M22: 0
A23: 22 | B23: Doprava | C23: 2219 | D23: Ostatní záležitosti pozemních komunikací | E23: 6121 | F23: Stavby | G23: 0221900082 | H23: Stoupací pruh I/34 | I23: 2000 | J23: 2000 | K23: 0 | L23: 2000 | M23: 0
A24: 22 | B24: Doprava | C24: 2219 | D24: Ostatní záležitosti pozemních komunikací | E24: 6121 | F24: Stavby | G24: 0221900083 | H24: Prostor mezi kinem a obch.domem (studie) | I24: 250 | J24: 250 | K24: 0 | L24: 250 | M24: 0
A25: 22 | B25: Doprava | C25: 2219 | D25: Ostatní záležitosti pozemních komunikací | E25: 6121 | F25: Stavby | G25: 0221900084 | H25: XXX Zastávka Světlice (stavba) | I25: 600 | J25: 0 | K25: 0 | L25: 0 | M25: 0
A26: 22 | B26: Doprava | C26: 2219 | D26: Ostatní záležitosti pozemních komunikací | E26: 6121 | F26: Stavby | G26: 0221900085 | H26: XXX Zastávka Kletečná (stavba) | I26: 600 | J26: 0 | K26: 0 | L26: 0 | M26: 0
A27: 22 | B27: Doprava | C27: 2219 | D27: Ostatní záležitosti pozemních komunikací | E27: 6121 | F27: Stavby | G27: 0221900086 | H27: Chodník Hněvkovice | I27: 6500 | J27: 6165 | K27: 949.26547 | L27: 5215.73453 | M27: 15.39765564
A28: 22 | B28: Doprava | C28: 2221 | D28: Provoz veřejné silniční dopravy | E28: 6121 | F28: Stavby | G28: 0222100005 | H28: Zastávka Světlice (stavba) | I28: 0 | J28: 600 | K28: 26.75 | L28: 573.25 | M28: 4.458333333
A29: 22 | B29: Doprava | C29: 2221 | D29: Provoz veřejné silniční dopravy | E29: 6121 | F29: Stavby | G29: 0222100006 | H29: Zastávka Kletečná (stavba) | I29: 0 | J29: 600 | K29: 26.75 | L29: 573.25 | M29: 4.458333333
A30: ODPA(2) 22 Doprava | I30: 26200 | J30: 26050 | K30: 6909.55 | L30: 19140.45 | M30: 26.52
A31: 23 | B31: Vodní hospodářství | C31: 2310 | D31: Pitná voda | E31: 6121 | F31: Stavby | G31: 0231000045 | H31: Posílení vodního zdroje Lhotka-napojení vrtané studny | I31: 1000 | J31: 1000 | K31: 0 | L31: 1000 | M31: 0
A32: 23 | B32: Vodní hospodářství | C32: 2310 | D32: Pitná voda | E32: 6121 | F32: Stavby | G32: 0231000054 | H32: Plán obnovy-vodovod ul.Pražská-Na Kasárnách | I32: 7500 | J32: 7500 | K32: 44.695 | L32: 7455.305 | M32: 0.5959333333
A33: 23 | B33: Vodní hospodářství | C33: 2310 | D33: Pitná voda | E33: 6121 | F33: Stavby | G33: 0231000055 | H33: Vodovod Plačkov,poz.parc.č. 470/5 a 464/1 (PD) | I33: 150 | J33: 150 | K33: 0 | L33: 150 | M33: 0
A34: 23 | B34: Vodní hospodářství | C34: 2310 | D34: Pitná voda | E34: 6121 | F34: Stavby | G34: 0231000056 | H34: Vodovod Pelhřimovská (PD) | I34: 250 | J34: 0 | K34: 0 | L34: 0 | M34: 0
A35: 23 | B35: Vodní hospodářství | C35: 2310 | D35: Pitná voda | E35: 6121 | F35: Stavby | G35: 0231000060 | H35: Rozšíření vodovodu-lokalita zahrádky v Cípku (PD) | I35: 0 | J35: 43 | K35: 0 | L35: 43 | M35: 0
A36: 23 | B36: Vodní hospodářství | C36: 2321 | D36: Odvádění a čištění odpadních vod a nakládání s kaly | E36: 6121 | F36: Stavby | G36: 0232100048 | H36: Dešťová kanalizace ul. Lužická | I36: 2500 | J36: 2500 | K36: 783.08899 | L36: 1716.91101 | M36: 31.3235596
A37: 23 | B37: Vodní hospodářství | C37: 2321 | D37: Odvádění a čištění odpadních vod a nakládání s kaly | E37: 6121 | F37: Stavby | G37: 0232100052 | H37: Plán obnovy-kanalizace ul.Pražská-Na Kasárnách | I37: 23200 | J37: 23200 | K37: 6921.29899 | L37: 16278.70101 | M37: 29.8331853
A38: 23 | B38: Vodní hospodářství | C38: 2321 | D38: Odvádění a čištění odpadních vod a nakládání s kaly | E38: 6121 | F38: Stavby | G38: 0232100053 | H38: Dešťová a splašk.kanalizace ZTV Blanická-Na Závodí-Spojovací (PD) | I38: 100 | J38: 100 | K38: 0 | L38: 100 | M38: 0
A39: 23 | B39: Vodní hospodářství | C39: 2321 | D39: Odvádění a čištění odpadních vod a nakládání s kaly | E39: 6121 | F39: Stavby | G39: 0232100054 | H39: ČOV Humpolec (PD) | I39: 6000 | J39: 6000 | K39: 0 | L39: 6000 | M39: 0
A40: 23 | B40: Vodní hospodářství | C40: 2321 | D40: Odvádění a čištění odpadních vod a nakládání s kaly | E40: 6121 | F40: Stavby | G40: 0232100055 | H40: Kanalizace Plačkov,poz.parc.č. 470/5 a 464/1 (PD) | I40: 150 | J40: 150 | K40: 0 | L40: 150 | M40: 0
A41: 23 | B41: Vodní hospodářství | C41: 2321 | D41: Odvádění a čištění odpadních vod a nakládání s kaly | E41: 6121 | F41: Stavby | G41: 0232100056 | H41: Kanalizace Pelhřimovská (PD) | I41: 250 | J41: 0 | K41: 0 | L41: 0 | M41: 0
A42: 23 | B42: Vodní hospodářství | C42: 2341 | D42: Vodní díla v zemědělské krajině | E42: 6121 | F42: Stavby | G42: 0234100002 | H42: OÚE-Oprava a odbahnění rybníků Velký (p.č.62) a Malý (p.č.61)v k.ú. Petrovice u HU | I42: 0 | J42: 2920 | K42: 2649.31073 | L42: 270.68927 | M42: 90.72981952
A43: 23 | B43: Vodní hospodářství | C43: 2341 | D43: Vodní díla v zemědělské krajině | E43: 6121 | F43: Stavby | G43: 0234100003 | H43: OÚE-Oprava a odbahnění rybníka Kamšovák (p.č. 524/1)v k.ú.Petrovice u HU | I43: 0 | J43: 2400 | K43: 2398.45361 | L43: 1.54639 | M43: 99.93556708
A44: ODPA(2) 23 Vodní hospodářství | I44: 41100 | J44: 45963 | K44: 12796.85 | L44: 33166.16 | M44: 27.84
A45: 31 | B45: Vzdělávání a školské služby | C45: 3111 | D45: Mateřské školy | E45: 6121 | F45: Stavby | G45: 0311100001 | H45: OÚE-Mateřská škola Podhrad v Humpolci | I45: 58153 | J45: 58153 | K45: 56227.76515 | L45: 1925.23485 | M45: 96.6893628
A46: 31 | B46: Vzdělávání a školské služby | C46: 3111 | D46: Mateřské školy | E46: 6121 | F46: Stavby | G46: 0311100006 | H46: Vybavení školní zahrady MŠ Podhrad | I46: 0 | J46: 325 | K46: 288.52784 | L46: 36.47216 | M46: 88.77779692
A47: 31 | B47: Vzdělávání a školské služby | C47: 3111 | D47: Mateřské školy | E47: 6122 | F47: Stroje, přístroje a zařízení | G47: 0311100004 | H47: Vnitřní vybavení MŠ Podhrad | I47: 5100 | J47: 4625 | K47: 3586.7183 | L47: 1038.2817 | M47: 77.55066595
A48: 31 | B48: Vzdělávání a školské služby | C48: 3111 | D48: Mateřské školy | E48: 6122 | F48: Stroje, přístroje a zařízení | G48: 0311100006 | H48: Vybavení školní zahrady MŠ Podhrad | I48: 0 | J48: 49 | K48: 48.92429 | L48: 0.07571 | M48: 99.8454898
A49: 31 | B49: Vzdělávání a školské služby | C49: 3111 | D49: Mateřské školy | E49: 6351 | F49: Investiční transfery zřízeným příspěvkovým organizacím | G49: 0000000301 | H49: Mateřská škola | I49: 1350 | J49: 1350 | K49: 728.62808 | L49: 621.37192 | M49: 53.97245037
A50: 31 | B50: Vzdělávání a školské služby | C50: 3113 | D50: Základní školy | E50: 6351 | F50: Investiční transfery zřízeným příspěvkovým organizacím | G50: 0000000321 | H50: ZŠ Hálkova | I50: 100 | J50: 100 | K50: 41.516 | L50: 58.484 | M50: 41.516
A51: 31 | B51: Vzdělávání a školské služby | C51: 3113 | D51: Základní školy | E51: 6351 | F51: Investiční transfery zřízeným příspěvkovým organizacím | G51: 0000000322 | H51: ZŠ Hradská | I51: 500 | J51: 720 | K51: 500 | L51: 220 | M51: 69.44444444
A52: ODPA(2) 31 Vzdělávání a školské služby | I52: 65203 | J52: 65322 | K52: 61422.09 | L52: 3899.91 | M52: 94.03
A53: 32 | B53: Vzdělávání a školské služby | C53: 3233 | D53: Střediska volného času | E53: 6351 | F53: Investiční transfery zřízeným příspěvkovým organizacím | G53: 0000000325 | H53: SVČ | I53: 500 | J53: 860 | K53: 127.495 | L53: 732.505 | M53: 14.825
A54: ODPA(2) 32 Vzdělávání a školské služby | I54: 500 | J54: 860 | K54: 127.5 | L54: 732.51 | M54: 14.83
A55: 33 | B55: Kultura, církve a sdělovací prostředky | C55: 3319 | D55: Ostatní záležitosti kultury | E55: 6121 | F55: Stavby | G55: 0331900018 | H55: Spolkový dům č.p.59-výkup | I55: 14050 | J55: 14050 | K55: 14050 | L55: 0 | M55: 100
A56: 33 | B56: Kultura, církve a sdělovací prostředky | C56: 3319 | D56: Ostatní záležitosti kultury | E56: 6351 | F56: Investiční transfery zřízeným příspěvkovým organizacím | G56: 0000000376 | H56: MěKIS | I56: 4680 | J56: 4680 | K56: 0 | L56: 4680 | M56: 0
A57: 33 | B57: Kultura, církve a sdělovací prostředky | C57: 3322 | D57: Zachování a obnova kulturních památek | E57: 6121 | F57: Stavby | G57: 0332200022 | H57: Hrad Orlík - zastropení sklepení | I57: 400 | J57: 400 | K57: 8.643 | L57: 391.357 | M57: 2.16075
A58: 33 | B58: Kultura, církve a sdělovací prostředky | C58: 3326 | D58: Pořízení, zachování a obnova hodnot místního kulturního, národního a historického povědomí | E58: 6121 | F58: Stavby | G58: 0332600031 | H58: Kaplička Vilémov zvonění-elektrifikace | I58: 150 | J58: 150 | K58: 145.48624 | L58: 4.51376 | M58: 96.99082667
A59: ODPA(2) 33 Kultura, církve a sdělovací prostředky | I59: 19280 | J59: 19280 | K59: 14204.13 | L59: 5075.87 | M59: 73.67
A60: 34 | B60: Sport a zájmová činnost | C60: 3412 | D60: Sportovní zařízení ve vlastnictví obce | E60: 6121 | F60: Stavby | G60: 0341200015 | H60: Městská hřiště - herní prvky | I60: 600 | J60: 600 | K60: 109.8801 | L60: 490.1199 | M60: 18.31335
A61: 34 | B61: Sport a zájmová činnost | C61: 3412 | D61: Sportovní zařízení ve vlastnictví obce | E61: 6121 | F61: Stavby | G61: 0341200091 | H61: Fotbal.stadion-rekonstr.stupňů a plochy | I61: 10000 | J61: 10000 | K61: 125 | L61: 9875 | M61: 1.25
A62: 34 | B62: Sport a zájmová činnost | C62: 3412 | D62: Sportovní zařízení ve vlastnictví obce | E62: 6121 | F62: Stavby | G62: 0341200096 | H62: Hřiště Hněvkovice (PD) | I62: 250 | J62: 250 | K62: 85 | L62: 165 | M62: 34
A63: 34 | B63: Sport a zájmová činnost | C63: 3412 | D63: Sportovní zařízení ve vlastnictví obce | E63: 6121 | F63: Stavby | G63: 0341200097 | H63: Hřiště Krasoňov (PD) | I63: 250 | J63: 250 | K63: 0 | L63: 250 | M63: 0
A64: 34 | B64: Sport a zájmová činnost | C64: 3412 | D64: Sportovní zařízení ve vlastnictví obce | E64: 6121 | F64: Stavby | G64: 0341200102 | H64: Zakrytí mantinelů ZS | I64: 200 | J64: 200 | K64: 0 | L64: 200 | M64: 0
A65: 34 | B65: Sport a zájmová činnost | C65: 3412 | D65: Sportovní zařízení ve vlastnictví obce | E65: 6121 | F65: Stavby | G65: 0341200114 | H65: Sestava kontejnerů-šatny fotbal-Okružní ul. | I65: 2200 | J65: 2200 | K65: 2153.97842 | L65: 46.02158 | M65: 97.90811
A66: 34 | B66: Sport a zájmová činnost | C66: 3412 | D66: Sportovní zařízení ve vlastnictví obce | E66: 6121 | F66: Stavby | G66: 0341200116 | H66: Pumpskatetrack-dráha-plocha po LC | I66: 750 | J66: 750 | K66: 721.765 | L66: 28.235 | M66: 96.23533333
A67: 34 | B67: Sport a zájmová činnost | C67: 3412 | D67: Sportovní zařízení ve vlastnictví obce | E67: 6121 | F67: Stavby | G67: 0341200126 | H67: Fotbal.stadion-rekonstr.zázemí (studie) | I67: 250 | J67: 250 | K67: 0 | L67: 250 | M67: 0
A68: 34 | B68: Sport a zájmová činnost | C68: 3412 | D68: Sportovní zařízení ve vlastnictví obce | E68: 6121 | F68: Stavby | G68: 0341200127 | H68: Rekonstrukce sportovní haly TJ JISKRA (PD) | I68: 1000 | J68: 1000 | K68: 0 | L68: 1000 | M68: 0
A69: 34 | B69: Sport a zájmová činnost | C69: 3412 | D69: Sportovní zařízení ve vlastnictví obce | E69: 6121 | F69: Stavby | G69: 0341200128 | H69: ZS vstupní dveře pokladna | I69: 0 | J69: 200 | K69: 154.36153 | L69: 45.63847 | M69: 77.180765
A70: 34 | B70: Sport a zájmová činnost | C70: 3412 | D70: Sportovní zařízení ve vlastnictví obce | E70: 6121 | F70: Stavby | G70: 0341200129 | H70: Dětské hřiště Smetanova-opatření proti vandalismu (oplocení) | I70: 500 | J70: 500 | K70: 0 | L70: 500 | M70: 0
A71: 34 | B71: Sport a zájmová činnost | C71: 3412 | D71: Sportovní zařízení ve vlastnictví obce | E71: 6121 | F71: Stavby | G71: 0341200133 | H71: Tenisová hala Hradská-výměna osvětlení (LED) | I71: 1500 | J71: 1470 | K71: 0 | L71: 1470 | M71: 0
A72: 34 | B72: Sport a zájmová činnost | C72: 3412 | D72: Sportovní zařízení ve vlastnictví obce | E72: 6122 | F72: Stroje, přístroje a zařízení | G72: 0341200121 | H72: Vybavení sportovišť-místní části | I72: 50 | J72: 50 | K72: 0 | L72: 50 | M72: 0
A73: 34 | B73: Sport a zájmová činnost | C73: 3412 | D73: Sportovní zařízení ve vlastnictví obce | E73: 6122 | F73: Stroje, přístroje a zařízení | G73: 0341200122 | H73: Vybavení sportovišť-město | I73: 50 | J73: 50 | K73: 0 | L73: 50 | M73: 0
A74: 34 | B74: Sport a zájmová činnost | C74: 3412 | D74: Sportovní zařízení ve vlastnictví obce | E74: 6122 | F74: Stroje, přístroje a zařízení | G74: 0341200128 | H74: ZS vstupní dveře pokladna | I74: 200 | J74: 0 | K74: 0 | L74: 0 | M74: 0
A75: 34 | B75: Sport a zájmová činnost | C75: 3412 | D75: Sportovní zařízení ve vlastnictví obce | E75: 6122 | F75: Stroje, přístroje a zařízení | G75: 0341200130 | H75: Rezervní čerpadlo Žabák | I75: 200 | J75: 200 | K75: 0 | L75: 200 | M75: 0
A76: 34 | B76: Sport a zájmová činnost | C76: 3412 | D76: Sportovní zařízení ve vlastnictví obce | E76: 6122 | F76: Stroje, přístroje a zařízení | G76: 0341200131 | H76: Vybavení šaten fotb.stadion | I76: 500 | J76: 500 | K76: 0 | L76: 500 | M76: 0
A77: 34 | B77: Sport a zájmová činnost | C77: 3412 | D77: Sportovní zařízení ve vlastnictví obce | E77: 6122 | F77: Stroje, přístroje a zařízení | G77: 0341200132 | H77: Žabák digitální ukazatel tepl.vody,ovzduší,času | I77: 200 | J77: 230 | K77: 229.02184 | L77: 0.97816 | M77: 99.57471304
A78: ODPA(2) 34 Sport a zájmová činnost | I78: 18700 | J78: 18700 | K78: 3579.01 | L78: 15121 | M78: 19.14
A79: 36 | B79: Bydlení, komunální služby a územní rozvoj | C79: 3612 | D79: Bytové hospodářství | E79: 6121 | F79: Stavby | G79: 0000001903 | H79: BHS-celk.rekonstrukce bytů čp.19 | I79: 600 | J79: 600 | K79: 0 | L79: 600 | M79: 0
A80: 36 | B80: Bydlení, komunální služby a územní rozvoj | C80: 3612 | D80: Bytové hospodářství | E80: 6121 | F80: Stavby | G80: 0000007303 | H80: Byt.hosp.-celk.rekonstr. bytů čp 73 | I80: 600 | J80: 600 | K80: 0 | L80: 600 | M80: 0
A81: 36 | B81: Bydlení, komunální služby a územní rozvoj | C81: 3612 | D81: Bytové hospodářství | E81: 6121 | F81: Stavby | G81: 0000007403 | H81: BHS-celk.rekonstrukce bytů čp.74 | I81: 400 | J81: 400 | K81: 0 | L81: 400 | M81: 0
A82: 36 | B82: Bydlení, komunální služby a územní rozvoj | C82: 3612 | D82: Bytové hospodářství | E82: 6121 | F82: Stavby | G82: 0000073004 | H82: BHS-výtah Školní čp.730 (PD) | I82: 3000 | J82: 3000 | K82: 50 | L82: 2950 | M82: 1.666666667
A83: 36 | B83: Bydlení, komunální služby a územní rozvoj | C83: 3612 | D83: Bytové hospodářství | E83: 6121 | F83: Stavby | G83: 0000073005 | H83: BHS-odizol.zdiva čp.730 | I83: 500 | J83: 500 | K83: 0 | L83: 500 | M83: 0
A84: 36 | B84: Bydlení, komunální služby a územní rozvoj | C84: 3612 | D84: Bytové hospodářství | E84: 6121 | F84: Stavby | G84: 0000131303 | H84: BHS-celk.rekonstrukce bytů čp.1313 | I84: 600 | J84: 600 | K84: 0 | L84: 600 | M84: 0
A85: 36 | B85: Bydlení, komunální služby a územní rozvoj | C85: 3612 | D85: Bytové hospodářství | E85: 6121 | F85: Stavby | G85: 0000132603 | H85: BHS-celk.rekonstrukce bytů čp.1326 | I85: 600 | J85: 600 | K85: 237.0955 | L85: 362.9045 | M85: 39.51591667
A86: 36 | B86: Bydlení, komunální služby a územní rozvoj | C86: 3612 | D86: Bytové hospodářství | E86: 6121 | F86: Stavby | G86: 0000160703 | H86: BHS-rekonstrukce bytů čp.1607 | I86: 600 | J86: 600 | K86: 0 | L86: 600 | M86: 0
A87: 36 | B87: Bydlení, komunální služby a územní rozvoj | C87: 3612 | D87: Bytové hospodářství | E87: 6121 | F87: Stavby | G87: 0361200013 | H87: Byt.hosp.-bytový dům Hálkova (PD) | I87: 3500 | J87: 3500 | K87: 72.6 | L87: 3427.4 | M87: 2.074285714
A88: 36 | B88: Bydlení, komunální služby a územní rozvoj | C88: 3612 | D88: Bytové hospodářství | E88: 6121 | F88: Stavby | G88: 0361200016 | H88: Byt.hosp.-ZTV Podkova (PD) | I88: 800 | J88: 800 | K88: 0 | L88: 800 | M88: 0
A89: 36 | B89: Bydlení, komunální služby a územní rozvoj | C89: 3613 | D89: Nebytové hospodářství | E89: 6121 | F89: Stavby | G89: 0361300148 | H89: Nebyt.-čp.803 LTRN-izolace zdiva | I89: 250 | J89: 250 | K89: 0 | L89: 250 | M89: 0
A90: 36 | B90: Bydlení, komunální služby a územní rozvoj | C90: 3613 | D90: Nebytové hospodářství | E90: 6121 | F90: Stavby | G90: 0361300175 | H90: Nebyt.hosp.-čp.885-rekonstrukce ordinace | I90: 500 | J90: 500 | K90: 0 | L90: 500 | M90: 0
A91: 36 | B91: Bydlení, komunální služby a územní rozvoj | C91: 3613 | D91: Nebytové hospodářství | E91: 6121 | F91: Stavby | G91: 0361300185 | H91: Nebyt.hosp.-rekonstrukce budov OV (studie) | I91: 500 | J91: 500 | K91: 0 | L91: 500 | M91: 0
A92: 36 | B92: Bydlení, komunální služby a územní rozvoj | C92: 3613 | D92: Nebytové hospodářství | E92: 6121 | F92: Stavby | G92: 0361300186 | H92: Nebyt.hosp.-budova u hřiště v Plačkově (studie) | I92: 400 | J92: 400 | K92: 27.592 | L92: 372.408 | M92: 6.898
A93: 36 | B93: Bydlení, komunální služby a územní rozvoj | C93: 3613 | D93: Nebytové hospodářství | E93: 6121 | F93: Stavby | G93: 0361300187 | H93: Nebyt.hosp.-výměna oken-chata Bělice | I93: 50 | J93: 50 | K93: 49.61 | L93: 0.39 | M93: 99.22
A94: 36 | B94: Bydlení, komunální služby a územní rozvoj | C94: 3613 | D94: Nebytové hospodářství | E94: 6121 | F94: Stavby | G94: 0361300188 | H94: Nebyt.-Altán Stromovka-modernizace | I94: 0 | J94: 350 | K94: 84.1555 | L94: 265.8445 | M94: 24.04442857
A95: 36 | B95: Bydlení, komunální služby a územní rozvoj | C95: 3613 | D95: Nebytové hospodářství | E95: 6121 | F95: Stavby | G95: 0361300190 | H95: Budova čp.86 Hněvk. a příslušenství (pozemky st.84/1 a p.č.811 kú Hněvkovice u Humpolce) | I95: 0 | J95: 3450 | K95: 2596.45434 | L95: 853.54566 | M95: 75.25954609
A96: 36 | B96: Bydlení, komunální služby a územní rozvoj | C96: 3613 | D96: Nebytové hospodářství | E96: 6121 | F96: Stavby | G96: 0361300191 | H96: Nebyt.hosp.-Rampa OV Vilémov (246/9 v k.ú.Vilémov u Humpolce) | I96: 0 | J96: 150 | K96: 0 | L96: 150 | M96: 0
A97: 36 | B97: Bydlení, komunální služby a územní rozvoj | C97: 3613 | D97: Nebytové hospodářství | E97: 6121 | F97: Stavby | G97: 0361300192 | H97: Nebyt.hosp.-Sanace vlhkého zdiva OV Krasoňov | I97: 0 | J97: 500 | K97: 23.595 | L97: 476.405 | M97: 4.719
A98: 36 | B98: Bydlení, komunální služby a územní rozvoj | C98: 3631 | D98: Veřejné osvětlení | E98: 6121 | F98: Stavby | G98: 0363100012 | H98: VO nové akce (PD) | I98: 100 | J98: 100 | K98: 0 | L98: 100 | M98: 0
A99: 36 | B99: Bydlení, komunální služby a územní rozvoj | C99: 3631 | D99: Veřejné osvětlení | E99: 6121 | F99: Stavby | G99: 0363100043 | H99: VO Hněvkovice | I99: 1500 | J99: 1500 | K99: 0 | L99: 1500 | M99: 0
A100: 36 | B100: Bydlení, komunální služby a územní rozvoj | C100: 3631 | D100: Veřejné osvětlení | E100: 6121 | F100: Stavby | G100: 0363100059 | H100: VO nové akce | I100: 600 | J100: 600 | K100: 288.17344 | L100: 311.82656 | M100: 48.02890667
A101: 36 | B101: Bydlení, komunální služby a územní rozvoj | C101: 3631 | D101: Veřejné osvětlení | E101: 6121 | F101: Stavby | G101: 0363100062 | H101: VO ul. Lužická | I101: 2500 | J101: 2500 | K101: 816.68886 | L101: 1683.31114 | M101: 32.6675544
A102: 36 | B102: Bydlení, komunální služby a územní rozvoj | C102: 3631 | D102: Veřejné osvětlení | E102: 6121 | F102: Stavby | G102: 0363100065 | H102: VO Kletečná | I102: 250 | J102: 250 | K102: 228.88723 | L102: 21.11277 | M102: 91.554892
A103: 36 | B103: Bydlení, komunální služby a územní rozvoj | C103: 3632 | D103: Pohřebnictví | E103: 6121 | F103: Stavby | G103: 0363200016 | H103: Pohřebnictví-hřbitov, UH-rekonstrukce cest | I103: 1000 | J103: 50 | K103: 0 | L103: 50 | M103: 0
A104: 36 | B104: Bydlení, komunální služby a územní rozvoj | C104: 3632 | D104: Pohřebnictví | E104: 6121 | F104: Stavby | G104: 0363200022 | H104: Pohřebnictví-přístřešek+cesta-čp.934 SOS (studie) | I104: 150 | J104: 150 | K104: 0 | L104: 150 | M104: 0
A105: 36 | B105: Bydlení, komunální služby a územní rozvoj | C105: 3632 | D105: Pohřebnictví | E105: 6122 | F105: Stroje, přístroje a zařízení | G105: 0363200026 | H105: Pohřebnictví-kuch.linka čp.934 SOS | I105: 50 | J105: 50 | K105: 48.7 | L105: 1.3 | M105: 97.4
A106: 36 | B106: Bydlení, komunální služby a územní rozvoj | C106: 3635 | D106: Územní plánování | E106: 6119 | F106: Ostatní nákup dlouhodobého nehmotného majetku | G106: 0363500015 | H106: Územní plán-příprava nového ÚP | I106: 2500 | J106: 2500 | K106: 0 | L106: 2500 | M106: 0
A107: 36 | B107: Bydlení, komunální služby a územní rozvoj | C107: 3639 | D107: Komunální služby a územní rozvoj jinde nezařazené | E107: 6130 | F107: Pozemky | G107: 0361300190 | H107: Budova čp.86 Hněvk. a příslušenství (pozemky st.84/1 a p.č.811 kú Hněvkovice u Humpolce) | I107: 0 | J107: 1317 | K107: 1300.703 | L107: 16.297 | M107: 98.76256644
A108: 36 | B108: Bydlení, komunální služby a územní rozvoj | C108: 3639 | D108: Komunální služby a územní rozvoj jinde nezařazené | E108: 6130 | F108: Pozemky | G108: 0363900020 | H108: Komunální služby-výkup nemovitostí | I108: 10000 | J108: 6033 | K108: 1310.938 | L108: 4722.062 | M108: 21.72945467
A109: ODPA(2) 36 Bydlení, komunální služby a územní rozvoj | I109: 31550 | J109: 32400 | K109: 7135.2 | L109: 25264.81 | M109: 22.02
A110: 37 | B110: Ochrana životního prostředí | C110: 3725 | D110: Využívání a zneškodňování komunálních odpadů | E110: 6121 | F110: Stavby | G110: 0372500011 | H110: Kompostárna-stav.úpravy plochy, likvidace cesty | I110: 6000 | J110: 6000 | K110: 4147.764 | L110: 1852.236 | M110: 69.1294
A111: 37 | B111: Ochrana životního prostředí | C111: 3745 | D111: Péče o vzhled obcí a veřejnou zeleň | E111: 6119 | F111: Ostatní nákup dlouhodobého nehmotného majetku | G111: 0374500104 | H111: Digitálně technická mapa města-doplnění pasportu zeleně | I111: 500 | J111: 500 | K111: 0 | L111: 500 | M111: 0
A112: 37 | B112: Ochrana životního prostředí | C112: 3745 | D112: Péče o vzhled obcí a veřejnou zeleň | E112: 6121 | F112: Stavby | G112: 0374500049 | H112: Veř.zeleň-vodní plocha u Dvoráku | I112: 700 | J112: 600 | K112: 16.224 | L112: 583.776 | M112: 2.704
A113: 37 | B113: Ochrana životního prostředí | C113: 3745 | D113: Péče o vzhled obcí a veřejnou zeleň | E113: 6121 | F113: Stavby | G113: 0374500080 | H113: Péče o vzhled obce-protihluková stěna Okružní-Stodůlky | I113: 30 | J113: 30 | K113: 0 | L113: 30 | M113: 0
A114: 37 | B114: Ochrana životního prostředí | C114: 3745 | D114: Péče o vzhled obcí a veřejnou zeleň | E114: 6121 | F114: Stavby | G114: 0374500083 | H114: Péče o vzhled obce-protihluková stěna u D1 | I114: 300 | J114: 380 | K114: 0 | L114: 380 | M114: 0
A115: 37 | B115: Ochrana životního prostředí | C115: 3745 | D115: Péče o vzhled obcí a veřejnou zeleň | E115: 6121 | F115: Stavby | G115: 0374500091 | H115: Veřejná zeleň-parkové úpravy Plačkov | I115: 100 | J115: 100 | K115: 8.702 | L115: 91.298 | M115: 8.702
A116: 37 | B116: Ochrana životního prostředí | C116: 3745 | D116: Péče o vzhled obcí a veřejnou zeleň | E116: 6121 | F116: Stavby | G116: 0374500105 | H116: Veřejná zeleň-pěšina Lnářská | I116: 140 | J116: 160 | K116: 0 | L116: 160 | M116: 0
A117: 37 | B117: Ochrana životního prostředí | C117: 3745 | D117: Péče o vzhled obcí a veřejnou zeleň | E117: 6121 | F117: Stavby | G117: 0374500106 | H117: Veřejná zeleň-závlaha Stromovka | I117: 300 | J117: 300 | K117: 0 | L117: 300 | M117: 0
A118: ODPA(2) 37 Ochrana životního prostředí | I118: 8070 | J118: 8070 | K118: 4172.68 | L118: 3897.32 | M118: 51.71
A119: 52 | B119: Civilní připravenost na krizové stavy | C119: 5273 | D119: Ostatní správa v oblasti krizového řízení | E119: 6122 | F119: Stroje, přístroje a zařízení | G119: 0527300001 | H119: OÚE-Rozšíř.digit.povodň.plánu a varovného inf.systému pro město Humpolec | I119: 10000 | J119: 10000 | K119: 76.568 | L119: 9923.432 | M119: 0.76568
A120: ODPA(2) 52 Civilní připravenost na krizové stavy | I120: 10000 | J120: 10000 | K120: 76.57 | L120: 9923.43 | M120: 0.77
A121: 53 | B121: Bezpečnost a veřejný pořádek | C121: 5311 | D121: Bezpečnost a veřejný pořádek | E121: 6121 | F121: Stavby | G121: 0531100003 | H121: Kamerový systém-nové kamery | I121: 100 | J121: 100 | K121: 0 | L121: 100 | M121: 0
A122: 53 | B122: Bezpečnost a veřejný pořádek | C122: 5311 | D122: Bezpečnost a veřejný pořádek | E122: 6122 | F122: Stroje, přístroje a zařízení | G122: 0531100003 | H122: Kamerový systém-nové kamery | I122: 600 | J122: 600 | K122: 124.40978 | L122: 475.59022 | M122: 20.73496333
A123: ODPA(2) 53 Bezpečnost a veřejný pořádek | I123: 700 | J123: 700 | K123: 124.41 | L123: 575.59 | M123: 17.77
A124: 55 | B124: Požární ochrana a integrovaný záchranný systém | C124: 5512 | D124: Požární ochrana-dobrovolná část | E124: 6121 | F124: Stavby | G124: 0551200010 | H124: Novostavba budovy SDH Humpolec | I124: 1200 | J124: 1200 | K124: 0 | L124: 1200 | M124: 0
A125: ODPA(2) 55 Požární ochrana a integrovaný záchranný systém | I125: 1200 | J125: 1200 | K125: 0 | L125: 1200 | M125: 0
A126: 61 | B126: Státní moc,státní správa,územní samospráva a politické strany | C126: 6171 | D126: Činnost místní správy | E126: 6111 | F126: Programové vybavení | G126: 0617100022 | H126: Správa MěÚ-Portál občana | I126: 150 | J126: 150 | K126: 0 | L126: 150 | M126: 0
A127: 61 | B127: Státní moc,státní správa,územní samospráva a politické strany | C127: 6171 | D127: Činnost místní správy | E127: 6111 | F127: Programové vybavení | G127: 0617100031 | H127: Správa MěÚ-DMS program-St.úřad | I127: 650 | J127: 650 | K127: 586.7532 | L127: 63.2468 | M127: 90.26972308
A128: 61 | B128: Státní moc,státní správa,územní samospráva a politické strany | C128: 6171 | D128: Činnost místní správy | E128: 6119 | F128: Ostatní nákup dlouhodobého nehmotného majetku | G128: 0617100028 | H128: Správa MěÚ-zhotovení www města | I128: 400 | J128: 400 | K128: 84.7 | L128: 315.3 | M128: 21.175
A129: 61 | B129: Státní moc,státní správa,územní samospráva a politické strany | C129: 6171 | D129: Činnost místní správy | E129: 6119 | F129: Ostatní nákup dlouhodobého nehmotného majetku | G129: 0617100032 | H129: Správa MěÚ-infokiosek u Infocentra Humpolec | I129: 105 | J129: 105 | K129: 102.85 | L129: 2.15 | M129: 97.95238095
A130: 61 | B130: Státní moc,státní správa,územní samospráva a politické strany | C130: 6171 | D130: Činnost místní správy | E130: 6121 | F130: Stavby | G130: 0617100005 | H130: Správa MěÚ-metropolitní síť | I130: 1000 | J130: 800 | K130: 205.2352 | L130: 594.7648 | M130: 25.6544
A131: 61 | B131: Státní moc,státní správa,územní samospráva a politické strany | C131: 6171 | D131: Činnost místní správy | E131: 6123 | F131: Dopravní prostředky | G131: 0617100033 | H131: Správa MěÚ-služební auto | I131: 600 | J131: 600 | K131: 435.8 | L131: 164.2 | M131: 72.63333333
A132: 61 | B132: Státní moc,státní správa,územní samospráva a politické strany | C132: 6171 | D132: Činnost místní správy | E132: 6125 | F132: Informační a komunikační technologie | G132: 0617100009 | H132: Správa MěÚ-výpočetní technika | I132: 610 | J132: 257 | K132: 65.0738 | L132: 191.9262 | M132: 25.32054475
A133: 61 | B133: Státní moc,státní správa,územní samospráva a politické strany | C133: 6171 | D133: Činnost místní správy | E133: 6125 | F133: Informační a komunikační technologie | G133: 0617100036 | H133: OÚE-Kraj Vys.-inv.dotace-ICT 2023-Výměna dosluhujícího databáz.serveru pro IS VERA | I133: 0 | J133: 553 | K133: 0 | L133: 553 | M133: 0
A134: ODPA(2) 61 Státní moc,státní správa,územní samospráva a politické strany | I134: 3515 | J134: 3515 | K134: 1480.41 | L134: 2034.59 | M134: 42.12
A135: Celkem | I135: 227018 | J135: 233060 | K135: 112524.41 | L135: 120535.64 | M135: 48.28

Sheet Výdaje za oddíly
A1: 00248266 Město Humpolec
A2: Horní náměstí 300 Humpolec
A3: Plnění běžných výdajů - za oddíly - k 31.08.2023 v tisících Kč
A4: Podmínka: AND POL=5*
A5: ODPA(2) | B5: Popis | C5: 2023
B6: Závazné ukazatele - oddíly: | C6: Schválený rozp. | D6: Upravený rozp. | E6: Skutečnost | F6: Plnění v Kč k UR | G6: Plnění v % k UR | H6: Skutečnost k 31.8.2022
A7: 10 | B7: Zemědělství, lesní hospodářství a rybářství | C7: 1580 | D7: 1580 | E7: 466.68665 | F7: 1113.31335 | G7: 29.53712975 | H7: 718.68745
A8: 21 | B8: Průmysl, stavebnictví, obchod a služby | C8: 175 | D8: 235 | E8: 25.726 | F8: 209.274 | G8: 10.94723404 | H8: 42.19523
A9: 22 | B9: Doprava | C9: 16225 | D9: 16225 | E9: 5730.61442 | F9: 10494.38558 | G9: 35.31965744 | H9: 5746.92495
A10: 23 | B10: Vodní hospodářství | C10: 52044 | D10: 47444 | E10: 23292.96575 | F10: 24151.03425 | G10: 49.09570388 | H10: 24458.7401
A11: 31 | B11: Vzdělávání a školské služby | C11: 28419 | D11: 28374 | E11: 23283.39487 | F11: 5090.60513 | G11: 82.05890911 | H11: 13249.09245
A12: 32 | B12: Vzdělávání a školské služby | C12: 4764 | D12: 4404 | E12: 3189.6 | F12: 1214.4 | G12: 72.42506812 | H12: 2143
A13: 33 | B13: Kultura, církve a sdělovací prostředky | C13: 25585 | D13: 25566 | E13: 13337.22319 | F13: 12228.77681 | G13: 52.16781346 | H13: 10187.05848
A14: 34 | B14: Sport a zájmová činnost | C14: 24882.3 | D14: 24882.3 | E14: 18012.08455 | F14: 6870.21545 | G14: 72.3891463 | H14: 12598.31759
A15: 36 | B15: Bydlení, komunální služby a územní rozvoj | C15: 64860.187 | D15: 65214.187 | E15: 30294.90729 | F15: 34919.27971 | G15: 46.45447361 | H15: 18612.35424
A16: 37 | B16: Ochrana životního prostředí | C16: 38490 | D16: 38690 | E16: 22583.63957 | F16: 16106.36043 | G16: 58.37074068 | H16: 20077.3037
A17: 39 | B17: Ostatní činnosti související se službami pro fyzické osoby | C17: 70 | D17: 70 | E17: 46.188 | F17: 23.812 | G17: 65.98285714 | H17: 66.02
A18: 43 | B18: Sociální služby a společné činnosti v sociálním zabezpečení a politice zaměstnanosti | C18: 4540.5 | D18: 4540.5 | E18: 4475.5 | F18: 65 | G18: 98.5684396 | H18: 4095
A19: 52 | B19: Civilní připravenost na krizové stavy | C19: 287 | D19: 287 | E19: 25.852 | F19: 261.148 | G19: 9.007665505 | H19: 42.004
A20: 53 | B20: Bezpečnost a veřejný pořádek | C20: 820 | D20: 820 | E20: 250.78313 | F20: 569.21687 | G20: 30.58330854 | H20: 228.31074
A21: 55 | B21: Požární ochrana a integrovaný záchranný systém | C21: 2315.7 | D21: 2335.7 | E21: 784.2028 | F21: 1551.4972 | G21: 33.57463715 | H21: 844.3125
A22: 61 | B22: Státní moc,státní správa,územní samospráva a politické strany | C22: 69676 | D22: 72322.23196 | E22: 42557.6161 | F22: 29764.61586 | G22: 58.84444513 | H22: 37474.96083
A23: 62 | B23: Jiné veřejné služby a činnosti | C23: 600 | D23: 600 | E23: 6.98068 | F23: 593.01932 | G23: 1.163446667 | H23: 186.728
A24: 63 | B24: Finanční operace | C24: 27700 | D24: 27699.4 | E24: 20873.23368 | F24: 6826.16632 | G24: 75.35626649 | H24: 21340.6904
A25: 64 | B25: Ostatní činnosti | C25: 306.21604 | D25: 306.21604 | E25: 293.72204 | F25: 12.494 | G25: 95.91987409 | H25: 165.742
A26: Celkem | C26: 363339.91 | D26: 361595.54 | E26: 209530.91 | F26: 152064.63 | G26: 57.95 | H26: 172277.43
A28: Plnění kapitálových výdajů - za oddíly - k 31.08.2023 v tisících Kč
A29: Podmínka: AND POL=6*
A30: ODPA(2) | B30: Popis | C30: 2023
B31: Závazné ukazatele - oddíly: | C31: Schválený rozp. | D31: Upravený rozp. | E31: Skutečnost | F31: Plnění v Kč k UR | G31: Plnění v % k UR | H31: Skutečnost k 31.8.2022
A32: 10 | B32: Zemědělství, lesní hospodářství a rybářství | C32: 1000 | D32: 1000 | E32: 496.0032 | F32: 503.9968 | G32: 49.60032 | H32: 496.0032
A33: 22 | B33: Doprava | C33: 26200 | D33: 26050 | E33: 6909.54439 | F33: 19140.45561 | G33: 26.52416273 | H33: 6909.54439
A34: 23 | B34: Vodní hospodářství | C34: 41100 | D34: 45963 | E34: 12796.84732 | F34: 33166.15268 | G34: 27.84162766 | H34: 12796.84732
A35: 31 | B35: Vzdělávání a školské služby | C35: 65203 | D35: 65322 | E35: 61422.07966 | F35: 3899.92034 | G35: 94.02969851 | H35: 61422.07966
A36: 32 | B36: Vzdělávání a školské služby | C36: 500 | D36: 860 | E36: 127.495 | F36: 732.505 | G36: 14.825 | H36: 127.495
A37: 33 | B37: Kultura, církve a sdělovací prostředky | C37: 19280 | D37: 19280 | E37: 14204.12924 | F37: 5075.87076 | G37: 73.6728695 | H37: 14204.12924
A38: 34 | B38: Sport a zájmová činnost | C38: 18700 | D38: 18700 | E38: 3579.00689 | F38: 15120.99311 | G38: 19.13907428 | H38: 3579.00689
A39: 36 | B39: Bydlení, komunální služby a územní rozvoj | C39: 31550 | D39: 32400 | E39: 7135.19287 | F39: 25264.80713 | G39: 22.02220022 | H39: 7135.19287
A40: 37 | B40: Ochrana životního prostředí | C40: 8070 | D40: 8070 | E40: 4172.69 | F40: 3897.31 | G40: 51.70619579 | H40: 4172.69
A41: 52 | B41: Civilní připravenost na krizové stavy | C41: 10000 | D41: 10000 | E41: 76.568 | F41: 9923.432 | G41: 0.76568 | H41: 76.568
A42: 53 | B42: Bezpečnost a veřejný pořádek | C42: 700 | D42: 700 | E42: 124.40978 | F42: 575.59022 | G42: 17.77282571 | H42: 124.40978
A43: 55 | B43: Požární ochrana a integrovaný záchranný systém | C43: 1200 | D43: 1200 | E43: 0 | F43: 1200 | G43: 0
A44: 61 | B44: Státní moc,státní správa,územní samospráva a politické strany | C44: 3515 | D44: 3515 | E44: 1480.4122 | F44: 2034.5878 | G44: 42.11699004 | H44: 1480.4122
A45: Celkem | C45: 227018 | D45: 233060 | E45: 112524.38 | F45: 120535.63 | G45: 48.28 | H45: 112524.38
A48: Plnění celkových výdajů - za oddíly - k 31.08.2023 v tisících Kč
A49: Podmínka: AND POL je mezi 5000, 6999
A50: ODPA(2) | B50: Popis | C50: 2023
C51: Schválený rozp. | D51: Upravený rozp. | E51: Skutečnost | F51: Plnění v Kč k UR | G51: Plnění v % k UR | H51: Skutečnost k 31.8.2022
A52: 10 | B52: Zemědělství, lesní hospodářství a rybářství | C52: 2580 | D52: 2580 | E52: 962.68985 | F52: 1617.31015 | G52: 37.31356008 | H52: 718.68745
A53: 21 | B53: Průmysl, stavebnictví, obchod a služby | C53: 175 | D53: 235 | E53: 25.726 | F53: 209.274 | G53: 10.94723404 | H53: 42.19523
A54: 22 | B54: Doprava | C54: 42425 | D54: 42275 | E54: 12640.15881 | F54: 29634.84119 | G54: 29.89984343 | H54: 10608.93633
A55: 23 | B55: Vodní hospodářství | C55: 93144 | D55: 93407 | E55: 36089.81307 | F55: 57317.18693 | G55: 38.6371611 | H55: 30312.73389
A56: 31 | B56: Vzdělávání a školské služby | C56: 93622 | D56: 93696 | E56: 84705.47453 | F56: 8990.52547 | G56: 90.4045792 | H56: 15490.5859
A57: 32 | B57: Vzdělávání a školské služby | C57: 5264 | D57: 5264 | E57: 3317.095 | F57: 1946.905 | G57: 63.01472264 | H57: 2850.835
A58: 33 | B58: Kultura, církve a sdělovací prostředky | C58: 44865 | D58: 44846 | E58: 27541.35243 | F58: 17304.64757 | G58: 61.41317493 | H58: 23972.50248
A59: 34 | B59: Sport a zájmová činnost | C59: 43582.3 | D59: 43582.3 | E59: 21591.09144 | F59: 21991.20856 | G59: 49.54096374 | H59: 18297.60795
A60: 36 | B60: Bydlení, komunální služby a územní rozvoj | C60: 96410.187 | D60: 97614.187 | E60: 37430.10016 | F60: 60184.08684 | G60: 38.34493869 | H60: 24403.97638
A61: 37 | B61: Ochrana životního prostředí | C61: 46560 | D61: 46760 | E61: 26756.32957 | F61: 20003.67043 | G61: 57.22055083 | H61: 20143.2407
A62: 39 | B62: Ostatní činnosti související se službami pro fyzické osoby | C62: 70 | D62: 70 | E62: 46.188 | F62: 23.812 | G62: 65.98285714 | H62: 66.02
A63: 43 | B63: Sociální služby a společné činnosti v sociálním zabezpečení a politice zaměstnanosti | C63: 4540.5 | D63: 4540.5 | E63: 4475.5 | F63: 65 | G63: 98.5684396 | H63: 4095
A64: 52 | B64: Civilní připravenost na krizové stavy | C64: 10287 | D64: 10287 | E64: 102.42 | F64: 10184.58 | G64: 0.9956255468 | H64: 42.004
A65: 53 | B65: Bezpečnost a veřejný pořádek | C65: 1520 | D65: 1520 | E65: 375.19291 | F65: 1144.80709 | G65: 24.68374408 | H65: 340.92665
A66: 55 | B66: Požární ochrana a integrovaný záchranný systém | C66: 3515.7 | D66: 3535.7 | E66: 784.2028 | F66: 2751.4972 | G66: 22.17956275 | H66: 1134.7125
A67: 61 | B67: Státní moc,státní správa,územní samospráva a politické strany | C67: 73191 | D67: 75837.23196 | E67: 44038.0283 | F67: 31799.20366 | G67: 58.06913987 | H67: 38292.65986
A68: 62 | B68: Jiné veřejné služby a činnosti | C68: 600 | D68: 600 | E68: 6.98068 | F68: 593.01932 | G68: 1.163446667 | H68: 186.728
A69: 63 | B69: Finanční operace | C69: 27700 | D69: 27699.4 | E69: 20873.23368 | F69: 6826.16632 | G69: 75.35626649 | H69: 21340.6904
A70: 64 | B70: Ostatní činnosti | C70: 306.21604 | D70: 306.21604 | E70: 293.72204 | F70: 12.494 | G70: 95.91987409 | H70: 165.742
A71: Celkem | C71: 590357.91 | D71: 594655.54 | E71: 322055.29 | F71: 272600.25 | G71: 54.16 | H71: 212505.8

Sheet energie
A1: Plnění výdajů - energie- k 31.08.2023 v tisících Kč
A2: Podmínka: AND POL=515*
A3: POL(4) | B3: Popis | C3: 2022 | E3: 2023
C4: Skutečnost k 31.12. | D4: Skutečnost k 31. 8. | E4: Upravený rozp. | F4: Skutečnost | G4: Plnění v Kč k UR | H4: Plnění v % k UR | I4: Index UR 23/SK22 | J4: SK 8_23/SK 8_22
A5: 5151 | B5: Studená voda včetně stočného a úplaty za odvod deštových vod | C5: 9078.2858 | D5: 5358.7428 | E5: 10220 | F5: 5442.96899 | G5: 4777.03101 | H5: 53.2580136 | I5: =E5/C5 -> 1.125763192 | J5: =F5/D5 -> 1.015717528
A6: 5152 | B6: Teplo | C6: 2720.38422 | D6: 1916.18422 | E6: 7160 | F6: 3822.97289 | G6: 3337.02711 | H6: 53.39347612 | I6: =E6/C6 -> 2.631981154 | J6: 1.99509674
A7: 5153 | B7: Plyn | C7: 974.15283 | D7: 671.12157 | E7: 3140 | F7: 999.78183 | G7: 2140.21817 | H7: 31.84018567 | I7: 3.223313533 | J7: 1.489717921
A8: 5154 | B8: Elektrická energie | C8: 5210.5158 | D8: 3609.45703 | E8: 10698 | F8: 5566.78466 | G8: 5131.21534 | H8: 52.03575117 | I8: 2.053155659 | J8: 1.542277582
A9: 5155 | B9: Pevná paliva | C9: 36.7 | D9: 0 | E9: 40 | F9: 0 | G9: 40 | H9: 0 | I9: 1.089918256
A10: 5156 | B10: Pohonné hmoty a maziva | C10: 226.26924 | D10: 160.74853 | E10: 260 | F10: 115.21745 | G10: 144.78255 | H10: 44.31440385 | I10: 1.149073555 | J10: 0.7167558546
A11: 5157 | B11: Teplá voda | C11: 600.34 | D11: 405.807 | E11: 1440 | F11: 851.6104 | G11: 588.3896 | H11: 59.13961111 | I11: 2.39864077 | J11: 2.098560153
A12: Celkem | C12: 18846.65 | D12: 12122.06 | E12: 32958 | F12: 16799.33 | G12: 16158.67 | H12: 50.97 | I12: 1.748745798 | J12: 1.385847785

Sheet Stav Bú,TV a úvěrů
A1: 00248266 Město Humpolec
A2: Horní náměstí 300 Humpolec
A3: HLAVNÍ KNIHA ZKRÁCENÁ K 31.08.2023 V KČ
A5: SU | B5: AU | C5: Popis | D5: PS | E5: MD Celkem | F5: DAL Celkem | G5: Zůstatek | K5: PS-zůstatek
A6: 231 | B6: 0123 | C6: Základní běžný účet ÚSC - vodní hospodářství | D6: 18232132.17 | E6: 40398268.93 | F6: 50195989.97 | G6: 8434411.13
A7: 231 | B7: 0136 | C7: Základní běžný účet - bytové hospodářství | D7: 16409034.38 | E7: 16139420.81 | F7: 26115727.74 | G7: 6432727.45
A8: 231 | B8: 0210 | C8: Základní běžný účet - ČS | D8: 442463.29 | E8: 11490031.12 | F8: 11480739.14 | G8: 451755.27
A9: 231 | B9: 0410 | C9: Základní běžný účet ÚSC 9005 | D9: 2499869.1 | E9: 18012930 | F9: 20133027 | G9: 379772.1
A10: 231 | B10: 0510 | C10: ZBÚ - ČNB | D10: 846481.02 | E10: 29799440 | F10: 30641212.28 | G10: 4708.74
A11: 231 | B11: 0610 | C11: Základní běžný účet-příjmy | D11: 6608479.3 | E11: 197270454.4 | F11: 203677976.9 | G11: 200956.74
A12: 231 | B12: 0611 | C12: ZBÚ - příjmy - úsekové měření | D12: 198958.64 | E12: 8231.27 | F12: 2414 | G12: 204775.91
A13: 231 | B13: 0630 | C13: ZBÚ - příjmy-ČSOB-spořící účet | D13: 182383054.9 | E13: 46120482.64 | F13: 217300000 | G13: 11203537.56
A14: 231 | B14: 0631 | C14: ZBÚ - příjmy-ČSOB-běžný účet | D14: 142459.78 | E14: 222780000 | F14: 222833953.1 | G14: 88506.73
A15: 231 | B15: 0810 | C15: Základní běžný účet ÚSC - výdaje | D15: 13742516.76 | E15: 265514033.1 | F15: 277123094.5 | G15: 2133455.34
A16: SU 231 Základní běžný účet ÚSC | D16: =SUM(D6:D13,D14:D15) -> 241505449.4 | E16: =SUM(E6:E13,E14:E15) -> 847533292.3 | F16: =SUM(F6:F13,F14:F15) -> 1059504135 | G16: =SUM(G6:G13,G14:G15) -> 29534606.97 | K16: =D16-G16 -> 211970842.4
A17: 244 | B17: 0300 | C17: Termínované vklady krátkodobé - ČSOB | D17: 5000 | E17: 174103656.3 | F17: 5220910.68 | G17: 168887745.6
C18: z toho fin. prostř. bytového hospodářství | D18: 0 | E18: 15000000 | F18: 0 | G18: 15000000
C19: z toho fin. prostř. vodního hospodářství | D19: 0 | E19: 15000000 | F19: 0 | G19: 15000000
A20: SU 244 Termínované vklady krátkodobé | D20: 5000 | E20: 174103656.3 | F20: 5220910.68 | G20: 168887745.6
A21: Celkem běžné účty + termínovaný vklad | D21: =SUM(D20,D16) -> 241510449.4 | E21: =SUM(E20,E16) -> 1021636949 | F21: =SUM(F20,F16) -> 1064725045 | G21: =SUM(G20,G16) -> 198422352.6
A23: 236 | B23: 0100 | C23: Běžné účty fondů ÚSC - sociální fond | D23: 530864.31 | E23: 740432.09 | F23: 632559.5 | G23: 638736.9
A24: 236 | B24: 0140 | C24: Fond bydlení a rozvoje infrastruktury (FBI) | D24: 5229303.03 | E24: 1291857.89 | F24: 4500462.5 | G24: 2020698.42 | H24: v 08/23 čerpáno 4500 tis. Kč dle schv.rozp.na inv.akci Chodník(lávka)ul. Lužická-podél komunikace III/34771
A25: 236 | B25: 0160 | C25: Fond ekologie | D25: 467459.3 | E25: 0 | F25: 0 | G25: 467459.3
A26: 236 | B26: 0180 | C26: Fond příspěvkových organizací | D26: 793056.92 | E26: 1718793.36 | F26: 0 | G26: 2511850.28
A27: 236 | B27: 0190 | C27: Fond benefiční | D27: 24973 | E27: 0 | F27: 0 | G27: 24973
A28: SU 236 Běžné účty fondů ÚSC | D28: =SUM(D23:D27) -> 7045656.56 | E28: 3751083.34 | F28: 5133022 | G28: 5663717.9 | K28: =D28-G28 -> 1381938.66
A29: Celkem běžné účty + termínovaný vklad + FONDY | D29: =SUM(D28,D21) -> 248556105.9 | E29: =SUM(E28,E21) -> 1025388032 | F29: 1069858067 | G29: 204086070.5
J30: Celkem 8115 | K30: =SUM(K28,K16) -> 213352781
C31: Úvěry | D31: PS | E31: splátky | F31: přijaté | G31: KS
A32: 451 | B32: 0101 | C32: Dlouhodobé úvěry-zápůjčka SFŽP- technologie ZS | D32: -18247538.36 | E32: =570235.58*2 -> 1140471.16 | F32: 0 | G32: =D32+E32 -> -17107067.2 | H32: do 2030 0,45 % p.a. Q.spl.
A33: 451 | B33: 0102 | C33: Dlouhodobé úvěry- ČSOB - nepřímo čerpaný- na výkup pozemků Blanická ul. | D33: -20465260 | E33: 20465260 | F33: 0 | G33: 0 | H33: do 12/2024 0,08% p.a.+1M PRIBOR, 0,78% od 01/2025-2034 | I33: splaceno k 27. 3. 2023, do 12/2024 zbývá dočerpat 79,5 mil. Kč
A34: 451 | B34: 0201 | C34: Dlouhodobé úvěry přímo čerpané - ČS, a-s. - ZTV Blanická | D34: -11085025.04 | E34: 11085025.04 | F34: 0 | G34: 0 | H34: do 09/2026 0,07% p.a.+1M PRIBOR | I34: splaceno k 24.3.2023
A35: SU 451 Dlouhodobé úvěry | D35: =SUM(D32:D34) -> -49797823.4 | E35: =SUM(E32:E34) -> 32690756.2 | F35: 0 | G35: -17107067.2
D37: PS | E37: MD Celkem | F37: DAL Celkem | G37: Zůstatek
A38: 261 | B38: 0100 | C38: Pokladna | D38: 0 | E38: 11434675 | F38: 11255157 | G38: 179518
A39: 261 | B39: 0111 | C39: Pokladna BHS | D39: 0 | E39: 207982 | F39: 203370 | G39: 4612
A40: SU 261 Pokladna | D40: 0 | E40: 11642657 | F40: 11458527 | G40: 184130
D42: PS | E42: MD Celkem | F42: DAL Celkem | G42: Zůstatek
A43: SU 262 Peníze na cestě | D43: 3910 | E43: 709602384.7 | F43: 709590634.7 | G43: 15660
D45: PS | E45: MD Celkem | F45: DAL Celkem | G45: Zůstatek
A46: SU 245 Depozitní účet - cizí prostředky | D46: 6960941.32 | E46: 6851906.36 | F46: 6623642.88 | G46: 7189204.8
